{"text_format":"1","workbook":"xlsx","n_sheets":5,"sheets":["MUAVİN","MİZAN","BİLANÇO","GELİR TABLOSU","RASYO ANALİZLER"],"not_rendered":{"charts":0,"images":0,"macros":0,"external_links":0,"defined_names":6,"comments":0,"pivot_tables":0},"unopened":[],"bounds":{"document_bytes":16777216,"sheet_cells":100000,"rows_first":2000,"rows_last":500,"rows_between":2000,"halvings":0,"cell_chars":16384,"cell_head_chars":4096},"cells_cut":0,"cells_raw":0,"read":"whole","date_system":"1900"}

{"sheet":"MUAVİN","index":0,"n_rows":11,"n_cols":8,"rows_kept":11,"cut":false,"hidden":false,"merged":[]}
[]
["Kebir","Hesap Kodu","Hesap Adı","Fiş Tarihi","Fiş No","Açıklama","Borç","Alacak"]
[100,"100.01",null,null,null,null,7500,4300]
[102,102,null,null,null,null,0,5500]
[500,null,null,null,null,null,0,2500000]
[600,null,null,null,null,null,0,5500]
[610,null,null,null,null,null,400,0]
[750,null,null,null,null,null,500,0]
[760,null,null,null,null,null,600,0]
[770,null,null,null,null,null,700,0]
[780,null,null,null,null,null,800,0]

{"sheet":"MİZAN","index":1,"n_rows":188,"n_cols":6,"rows_kept":188,"cut":false,"hidden":false,"merged":[[0,0,0,5],[187,0,187,1]]}
["31/12/202.. TARİHLİ MİZAN"]
["HESAP KODU","HESAP ADI","BORÇ","ALACAK","BORÇ BAKİYESİ","ALACAK BAKİYESİ"]
[100,"KASA",{"$f":"SUMIF(MUAVİN!$A$3:$A$550001,MİZAN!A3,MUAVİN!$G$3:$G$550001)","v":7500},{"$f":"SUMIF(MUAVİN!$A$3:$A$550001,MİZAN!A3,MUAVİN!$H$3:$H$550001)","v":4300},{"$f":"IF(C3>D3,C3-D3,0)","v":3200},{"$f":"IF(D3>C3,D3-C3,0)","v":0}]
[101,"ALINAN ÇEKLER",{"$f":"SUMIF(MUAVİN!$A$3:$A$550001,MİZAN!A4,MUAVİN!$G$3:$G$550001)","v":0},{"$f":"SUMIF(MUAVİN!$A$3:$A$550001,MİZAN!A4,MUAVİN!$H$3:$H$550001)","v":0},{"$f":"IF(C4>D4,C4-D4,0)","v":0},{"$f":"IF(D4>C4,D4-C4,0)","v":0}]
[102,"BANKALAR",{"$f":"SUMIF(MUAVİN!$A$3:$A$550001,MİZAN!A5,MUAVİN!$G$3:$G$550001)","v":0},{"$f":"SUMIF(MUAVİN!$A$3:$A$550001,MİZAN!A5,MUAVİN!$H$3:$H$550001)","v":5500},0,5500]
[103,"VERİLEN ÇEKLER VE ÖDEME EMİRLERİ (-)",{"$f":"SUMIF(MUAVİN!$A$3:$A$550001,MİZAN!A6,MUAVİN!$G$3:$G$550001)","v":0},{"$f":"SUMIF(MUAVİN!$A$3:$A$550001,MİZAN!A6,MUAVİN!$H$3:$H$550001)","v":0},0,0]
[108,"HAZIR DEĞERLER",{"$f":"SUMIF(MUAVİN!$A$3:$A$550001,MİZAN!A7,MUAVİN!$G$3:$G$550001)","v":0},{"$f":"SUMIF(MUAVİN!$A$3:$A$550001,MİZAN!A7,MUAVİN!$H$3:$H$550001)","v":0},0,0]
[110,"HİSSE SENETLERİ",{"$f":"SUMIF(MUAVİN!$A$3:$A$550001,MİZAN!A8,MUAVİN!$G$3:$G$550001)","v":0},{"$f":"SUMIF(MUAVİN!$A$3:$A$550001,MİZAN!A8,MUAVİN!$H$3:$H$550001)","v":0},0,0]
[111,"ÖZEL KESİM TAHVİL",{"$f":"SUMIF(MUAVİN!$A$3:$A$550001,MİZAN!A9,MUAVİN!$G$3:$G$550001)","v":0},{"$f":"SUMIF(MUAVİN!$A$3:$A$550001,MİZAN!A9,MUAVİN!$H$3:$H$550001)","v":0},0,0]
[112,"KAMU KESİMİ TAHV",{"$f":"SUMIF(MUAVİN!$A$3:$A$550001,MİZAN!A10,MUAVİN!$G$3:$G$550001)","v":0},{"$f":"SUMIF(MUAVİN!$A$3:$A$550001,MİZAN!A10,MUAVİN!$H$3:$H$550001)","v":0},0,0]
[118,"DİĞER MENKUL KIYMETLER",{"$f":"SUMIF(MUAVİN!$A$3:$A$550001,MİZAN!A11,MUAVİN!$G$3:$G$550001)","v":0},{"$f":"SUMIF(MUAVİN!$A$3:$A$550001,MİZAN!A11,MUAVİN!$H$3:$H$550001)","v":0},0,0]
[120,"ALICILAR",{"$f":"SUMIF(MUAVİN!$A$3:$A$550001,MİZAN!A12,MUAVİN!$G$3:$G$550001)","v":0},{"$f":"SUMIF(MUAVİN!$A$3:$A$550001,MİZAN!A12,MUAVİN!$H$3:$H$550001)","v":0},0,0]
[121,"ALACAK SENETLERİ",{"$f":"SUMIF(MUAVİN!$A$3:$A$550001,MİZAN!A13,MUAVİN!$G$3:$G$550001)","v":0},{"$f":"SUMIF(MUAVİN!$A$3:$A$550001,MİZAN!A13,MUAVİN!$H$3:$H$550001)","v":0},0,0]
[126,"VERİLEN DEPOZİTO VE TEMİNATLAR",{"$f":"SUMIF(MUAVİN!$A$3:$A$550001,MİZAN!A14,MUAVİN!$G$3:$G$550001)","v":0},{"$f":"SUMIF(MUAVİN!$A$3:$A$550001,MİZAN!A14,MUAVİN!$H$3:$H$550001)","v":0},0,0]
[127,"DİĞER TİCARİ ALACAKLAR",{"$f":"SUMIF(MUAVİN!$A$3:$A$550001,MİZAN!A15,MUAVİN!$G$3:$G$550001)","v":0},{"$f":"SUMIF(MUAVİN!$A$3:$A$550001,MİZAN!A15,MUAVİN!$H$3:$H$550001)","v":0},0,0]
[128,"ŞÜPHELİ TİCARİ ALACAKLAR",{"$f":"SUMIF(MUAVİN!$A$3:$A$550001,MİZAN!A16,MUAVİN!$G$3:$G$550001)","v":0},{"$f":"SUMIF(MUAVİN!$A$3:$A$550001,MİZAN!A16,MUAVİN!$H$3:$H$550001)","v":0},0,0]
[129,"ŞÜPHELİ TİCARİ ALACAKLAR KARŞILIĞ (-)",{"$f":"SUMIF(MUAVİN!$A$3:$A$550001,MİZAN!A17,MUAVİN!$G$3:$G$550001)","v":0},{"$f":"SUMIF(MUAVİN!$A$3:$A$550001,MİZAN!A17,MUAVİN!$H$3:$H$550001)","v":0},0,0]
[131,"ORTAKLARDAN ALACAKLAR",{"$f":"SUMIF(MUAVİN!$A$3:$A$550001,MİZAN!A18,MUAVİN!$G$3:$G$550001)","v":0},{"$f":"SUMIF(MUAVİN!$A$3:$A$550001,MİZAN!A18,MUAVİN!$H$3:$H$550001)","v":0},0,0]
[132,"İŞTİRAKLERDEN ALACAKLAR",{"$f":"SUMIF(MUAVİN!$A$3:$A$550001,MİZAN!A19,MUAVİN!$G$3:$G$550001)","v":0},{"$f":"SUMIF(MUAVİN!$A$3:$A$550001,MİZAN!A19,MUAVİN!$H$3:$H$550001)","v":0},0,0]
[133,"BAĞLI ORTAKLIKLARDAN ALACAKLAR",{"$f":"SUMIF(MUAVİN!$A$3:$A$550001,MİZAN!A20,MUAVİN!$G$3:$G$550001)","v":0},{"$f":"SUMIF(MUAVİN!$A$3:$A$550001,MİZAN!A20,MUAVİN!$H$3:$H$550001)","v":0},0,0]
[135,"PERSONELDEN ALACAKLAR",{"$f":"SUMIF(MUAVİN!$A$3:$A$550001,MİZAN!A21,MUAVİN!$G$3:$G$550001)","v":0},{"$f":"SUMIF(MUAVİN!$A$3:$A$550001,MİZAN!A21,MUAVİN!$H$3:$H$550001)","v":0},0,0]
[136,"DİĞER ÇEŞİTLİ ALACAKLAR",{"$f":"SUMIF(MUAVİN!$A$3:$A$550001,MİZAN!A22,MUAVİN!$G$3:$G$550001)","v":0},{"$f":"SUMIF(MUAVİN!$A$3:$A$550001,MİZAN!A22,MUAVİN!$H$3:$H$550001)","v":0},0,0]
[150,"İLK MADDE VE MALZEME",{"$f":"SUMIF(MUAVİN!$A$3:$A$550001,MİZAN!A23,MUAVİN!$G$3:$G$550001)","v":0},{"$f":"SUMIF(MUAVİN!$A$3:$A$550001,MİZAN!A23,MUAVİN!$H$3:$H$550001)","v":0},0,0]
[151,"YARI MAMUL",{"$f":"SUMIF(MUAVİN!$A$3:$A$550001,MİZAN!A24,MUAVİN!$G$3:$G$550001)","v":0},{"$f":"SUMIF(MUAVİN!$A$3:$A$550001,MİZAN!A24,MUAVİN!$H$3:$H$550001)","v":0},0,0]
[152,"MAMÜLLER",{"$f":"SUMIF(MUAVİN!$A$3:$A$550001,MİZAN!A25,MUAVİN!$G$3:$G$550001)","v":0},{"$f":"SUMIF(MUAVİN!$A$3:$A$550001,MİZAN!A25,MUAVİN!$H$3:$H$550001)","v":0},0,0]
[153,"TİCARİ MAL",{"$f":"SUMIF(MUAVİN!$A$3:$A$550001,MİZAN!A26,MUAVİN!$G$3:$G$550001)","v":0},{"$f":"SUMIF(MUAVİN!$A$3:$A$550001,MİZAN!A26,MUAVİN!$H$3:$H$550001)","v":0},0,0]
[157,"DİĞER STOKLAR",{"$f":"SUMIF(MUAVİN!$A$3:$A$550001,MİZAN!A27,MUAVİN!$G$3:$G$550001)","v":0},{"$f":"SUMIF(MUAVİN!$A$3:$A$550001,MİZAN!A27,MUAVİN!$H$3:$H$550001)","v":0},0,0]
[159,"VERİLEN SİPARİŞ AVANSLARI",{"$f":"SUMIF(MUAVİN!$A$3:$A$550001,MİZAN!A28,MUAVİN!$G$3:$G$550001)","v":0},{"$f":"SUMIF(MUAVİN!$A$3:$A$550001,MİZAN!A28,MUAVİN!$H$3:$H$550001)","v":0},0,0]
[170,"YILLARA YAYGIN İNŞAAT ONARIM İŞLERİ",{"$f":"SUMIF(MUAVİN!$A$3:$A$550001,MİZAN!A29,MUAVİN!$G$3:$G$550001)","v":0},{"$f":"SUMIF(MUAVİN!$A$3:$A$550001,MİZAN!A29,MUAVİN!$H$3:$H$550001)","v":0},0,0]
[178," Yıllara Yaygın İnş. Enf.Düz. Hes.",{"$f":"SUMIF(MUAVİN!$A$3:$A$550001,MİZAN!A30,MUAVİN!$G$3:$G$550001)","v":0},{"$f":"SUMIF(MUAVİN!$A$3:$A$550001,MİZAN!A30,MUAVİN!$H$3:$H$550001)","v":0},0,0]
[179," Taşeronlara Verilen Avanslar",{"$f":"SUMIF(MUAVİN!$A$3:$A$550001,MİZAN!A31,MUAVİN!$G$3:$G$550001)","v":0},{"$f":"SUMIF(MUAVİN!$A$3:$A$550001,MİZAN!A31,MUAVİN!$H$3:$H$550001)","v":0},0,0]
[180,"GELECEK AYLARA AİT GİDERLER",{"$f":"SUMIF(MUAVİN!$A$3:$A$550001,MİZAN!A32,MUAVİN!$G$3:$G$550001)","v":0},{"$f":"SUMIF(MUAVİN!$A$3:$A$550001,MİZAN!A32,MUAVİN!$H$3:$H$550001)","v":0},0,0]
[181,"GELİR TAHAKKUKLARI",{"$f":"SUMIF(MUAVİN!$A$3:$A$550001,MİZAN!A33,MUAVİN!$G$3:$G$550001)","v":0},{"$f":"SUMIF(MUAVİN!$A$3:$A$550001,MİZAN!A33,MUAVİN!$H$3:$H$550001)","v":0},0,0]
[190,"DEVREDEN KATMA DEĞER VERGİSİ",{"$f":"SUMIF(MUAVİN!$A$3:$A$550001,MİZAN!A34,MUAVİN!$G$3:$G$550001)","v":0},{"$f":"SUMIF(MUAVİN!$A$3:$A$550001,MİZAN!A34,MUAVİN!$H$3:$H$550001)","v":0},0,0]
[191,"İNDİRİLECEK KDV",{"$f":"SUMIF(MUAVİN!$A$3:$A$550001,MİZAN!A35,MUAVİN!$G$3:$G$550001)","v":0},{"$f":"SUMIF(MUAVİN!$A$3:$A$550001,MİZAN!A35,MUAVİN!$H$3:$H$550001)","v":0},0,0]
[192,"DİĞER KDV",{"$f":"SUMIF(MUAVİN!$A$3:$A$550001,MİZAN!A36,MUAVİN!$G$3:$G$550001)","v":0},{"$f":"SUMIF(MUAVİN!$A$3:$A$550001,MİZAN!A36,MUAVİN!$H$3:$H$550001)","v":0},0,0]
[193,"PEŞİN ÖDENEN VERGİLER VE FONLAR",{"$f":"SUMIF(MUAVİN!$A$3:$A$550001,MİZAN!A37,MUAVİN!$G$3:$G$550001)","v":0},{"$f":"SUMIF(MUAVİN!$A$3:$A$550001,MİZAN!A37,MUAVİN!$H$3:$H$550001)","v":0},0,0]
[195,"İŞ AVANSI",{"$f":"SUMIF(MUAVİN!$A$3:$A$550001,MİZAN!A38,MUAVİN!$G$3:$G$550001)","v":0},{"$f":"SUMIF(MUAVİN!$A$3:$A$550001,MİZAN!A38,MUAVİN!$H$3:$H$550001)","v":0},0,0]
[196,"PERSONEL AVANSLARI",{"$f":"SUMIF(MUAVİN!$A$3:$A$550001,MİZAN!A39,MUAVİN!$G$3:$G$550001)","v":0},{"$f":"SUMIF(MUAVİN!$A$3:$A$550001,MİZAN!A39,MUAVİN!$H$3:$H$550001)","v":0},0,0]
[197,"SAYIM VE TESELLÜM NOKSANLARI",{"$f":"SUMIF(MUAVİN!$A$3:$A$550001,MİZAN!A40,MUAVİN!$G$3:$G$550001)","v":0},{"$f":"SUMIF(MUAVİN!$A$3:$A$550001,MİZAN!A40,MUAVİN!$H$3:$H$550001)","v":0},0,0]
[198,"DİĞER ÇEŞİTLİ DÖNEN VARLIKLAR",{"$f":"SUMIF(MUAVİN!$A$3:$A$550001,MİZAN!A41,MUAVİN!$G$3:$G$550001)","v":0},{"$f":"SUMIF(MUAVİN!$A$3:$A$550001,MİZAN!A41,MUAVİN!$H$3:$H$550001)","v":0},0,0]
[220,"ALICILAR",{"$f":"SUMIF(MUAVİN!$A$3:$A$550001,MİZAN!A42,MUAVİN!$G$3:$G$550001)","v":0},{"$f":"SUMIF(MUAVİN!$A$3:$A$550001,MİZAN!A42,MUAVİN!$H$3:$H$550001)","v":0},0,0]
[221,"ALACAK SENETLERİ",{"$f":"SUMIF(MUAVİN!$A$3:$A$550001,MİZAN!A43,MUAVİN!$G$3:$G$550001)","v":0},{"$f":"SUMIF(MUAVİN!$A$3:$A$550001,MİZAN!A43,MUAVİN!$H$3:$H$550001)","v":0},0,0]
[226,"VERİLEN DEPOZİTO VE TEMİNATLAR",{"$f":"SUMIF(MUAVİN!$A$3:$A$550001,MİZAN!A44,MUAVİN!$G$3:$G$550001)","v":0},{"$f":"SUMIF(MUAVİN!$A$3:$A$550001,MİZAN!A44,MUAVİN!$H$3:$H$550001)","v":0},0,0]
[231,"ORTAKLARDAN ALACAKLAR",{"$f":"SUMIF(MUAVİN!$A$3:$A$550001,MİZAN!A45,MUAVİN!$G$3:$G$550001)","v":0},{"$f":"SUMIF(MUAVİN!$A$3:$A$550001,MİZAN!A45,MUAVİN!$H$3:$H$550001)","v":0},{"$f":"IF(C45>D45,C45-D45,0)","v":0},{"$f":"IF(D45>C45,D45-C45,0)","v":0}]
[232,"İŞTİRAKLERDEN ALACAKLAR",{"$f":"SUMIF(MUAVİN!$A$3:$A$550001,MİZAN!A46,MUAVİN!$G$3:$G$550001)","v":0},{"$f":"SUMIF(MUAVİN!$A$3:$A$550001,MİZAN!A46,MUAVİN!$H$3:$H$550001)","v":0},0,0]
[233,"BAĞLI ORTAKLIKLARDAN ALACAKLAR",{"$f":"SUMIF(MUAVİN!$A$3:$A$550001,MİZAN!A47,MUAVİN!$G$3:$G$550001)","v":0},{"$f":"SUMIF(MUAVİN!$A$3:$A$550001,MİZAN!A47,MUAVİN!$H$3:$H$550001)","v":0},0,0]
[236,"DİĞER ÇEŞİTLİ ALACAKLAR",{"$f":"SUMIF(MUAVİN!$A$3:$A$550001,MİZAN!A48,MUAVİN!$G$3:$G$550001)","v":0},{"$f":"SUMIF(MUAVİN!$A$3:$A$550001,MİZAN!A48,MUAVİN!$H$3:$H$550001)","v":0},0,0]
[240,"BAĞLI MENKUL KIYMETLER",{"$f":"SUMIF(MUAVİN!$A$3:$A$550001,MİZAN!A49,MUAVİN!$G$3:$G$550001)","v":0},{"$f":"SUMIF(MUAVİN!$A$3:$A$550001,MİZAN!A49,MUAVİN!$H$3:$H$550001)","v":0},0,0]
[241,"BAĞLI MENKUL KIYMETLER DEĞER DÜŞÜK KARŞILIĞI (-)",{"$f":"SUMIF(MUAVİN!$A$3:$A$550001,MİZAN!A50,MUAVİN!$G$3:$G$550001)","v":0},{"$f":"SUMIF(MUAVİN!$A$3:$A$550001,MİZAN!A50,MUAVİN!$H$3:$H$550001)","v":0},0,0]
[242,"İŞTİRAKLER",{"$f":"SUMIF(MUAVİN!$A$3:$A$550001,MİZAN!A51,MUAVİN!$G$3:$G$550001)","v":0},{"$f":"SUMIF(MUAVİN!$A$3:$A$550001,MİZAN!A51,MUAVİN!$H$3:$H$550001)","v":0},0,0]
[245,"BAĞLI ORTAKLIKLAR",{"$f":"SUMIF(MUAVİN!$A$3:$A$550001,MİZAN!A52,MUAVİN!$G$3:$G$550001)","v":0},{"$f":"SUMIF(MUAVİN!$A$3:$A$550001,MİZAN!A52,MUAVİN!$H$3:$H$550001)","v":0},0,0]
[250,"ARAZİ VE ARSALAR",{"$f":"SUMIF(MUAVİN!$A$3:$A$550001,MİZAN!A53,MUAVİN!$G$3:$G$550001)","v":0},{"$f":"SUMIF(MUAVİN!$A$3:$A$550001,MİZAN!A53,MUAVİN!$H$3:$H$550001)","v":0},0,0]
[251,"YER ALTI VE YER ÜSTE ZENGİLLİKLER",{"$f":"SUMIF(MUAVİN!$A$3:$A$550001,MİZAN!A54,MUAVİN!$G$3:$G$550001)","v":0},{"$f":"SUMIF(MUAVİN!$A$3:$A$550001,MİZAN!A54,MUAVİN!$H$3:$H$550001)","v":0},0,0]
[252,"BİNALAR",{"$f":"SUMIF(MUAVİN!$A$3:$A$550001,MİZAN!A55,MUAVİN!$G$3:$G$550001)","v":0},{"$f":"SUMIF(MUAVİN!$A$3:$A$550001,MİZAN!A55,MUAVİN!$H$3:$H$550001)","v":0},0,0]
[253,"TESİS, MAKİNA VE CİHAZLAR",{"$f":"SUMIF(MUAVİN!$A$3:$A$550001,MİZAN!A56,MUAVİN!$G$3:$G$550001)","v":0},{"$f":"SUMIF(MUAVİN!$A$3:$A$550001,MİZAN!A56,MUAVİN!$H$3:$H$550001)","v":0},0,0]
[254,"TAŞITLAR",{"$f":"SUMIF(MUAVİN!$A$3:$A$550001,MİZAN!A57,MUAVİN!$G$3:$G$550001)","v":0},{"$f":"SUMIF(MUAVİN!$A$3:$A$550001,MİZAN!A57,MUAVİN!$H$3:$H$550001)","v":0},0,0]
[255,"DEMİRBAŞLAR",{"$f":"SUMIF(MUAVİN!$A$3:$A$550001,MİZAN!A58,MUAVİN!$G$3:$G$550001)","v":0},{"$f":"SUMIF(MUAVİN!$A$3:$A$550001,MİZAN!A58,MUAVİN!$H$3:$H$550001)","v":0},0,0]
[256,"DİĞER MADDİ DURAN VARLIKLAR",{"$f":"SUMIF(MUAVİN!$A$3:$A$550001,MİZAN!A59,MUAVİN!$G$3:$G$550001)","v":0},{"$f":"SUMIF(MUAVİN!$A$3:$A$550001,MİZAN!A59,MUAVİN!$H$3:$H$550001)","v":0},0,0]
[257,"BİRİKMİŞ AMORTİSMANLAR (-)",{"$f":"SUMIF(MUAVİN!$A$3:$A$550001,MİZAN!A60,MUAVİN!$G$3:$G$550001)","v":0},{"$f":"SUMIF(MUAVİN!$A$3:$A$550001,MİZAN!A60,MUAVİN!$H$3:$H$550001)","v":0},0,0]
[258,"YAPILMAKTA OLAN YATIRIMLAR",{"$f":"SUMIF(MUAVİN!$A$3:$A$550001,MİZAN!A61,MUAVİN!$G$3:$G$550001)","v":0},{"$f":"SUMIF(MUAVİN!$A$3:$A$550001,MİZAN!A61,MUAVİN!$H$3:$H$550001)","v":0},{"$f":"IF(C61>D61,C61-D61,0)","v":0},{"$f":"IF(D61>C61,D61-C61,0)","v":0}]
[259,"VERİLEN AVANSLAR",{"$f":"SUMIF(MUAVİN!$A$3:$A$550001,MİZAN!A62,MUAVİN!$G$3:$G$550001)","v":0},{"$f":"SUMIF(MUAVİN!$A$3:$A$550001,MİZAN!A62,MUAVİN!$H$3:$H$550001)","v":0},0,0]
[260,"HAKLAR",{"$f":"SUMIF(MUAVİN!$A$3:$A$550001,MİZAN!A63,MUAVİN!$G$3:$G$550001)","v":0},{"$f":"SUMIF(MUAVİN!$A$3:$A$550001,MİZAN!A63,MUAVİN!$H$3:$H$550001)","v":0},0,0]
[261,"ŞERİFİYE",{"$f":"SUMIF(MUAVİN!$A$3:$A$550001,MİZAN!A64,MUAVİN!$G$3:$G$550001)","v":0},{"$f":"SUMIF(MUAVİN!$A$3:$A$550001,MİZAN!A64,MUAVİN!$H$3:$H$550001)","v":0},0,0]
[262,"KURULUŞ VE ÖRGÜTLENME GİDERLERİ",{"$f":"SUMIF(MUAVİN!$A$3:$A$550001,MİZAN!A65,MUAVİN!$G$3:$G$550001)","v":0},{"$f":"SUMIF(MUAVİN!$A$3:$A$550001,MİZAN!A65,MUAVİN!$H$3:$H$550001)","v":0},0,0]
[263,"ARAŞTIRMA VE GELİŞTİRME GİDERLERİ",0,0,0,0]
[264,"ÖZEL MALİYETLER",{"$f":"SUMIF(MUAVİN!$A$3:$A$177470,MİZAN!A67,MUAVİN!$G$3:$G$177470)","v":0},{"$f":"SUMIF(MUAVİN!$A$3:$A$177470,MİZAN!A67,MUAVİN!$H$3:$H$177470)","v":0},0,0]
[267,"DİĞER MADDİ OLMAYAN DURAN VARLIKLAR",{"$f":"SUMIF(MUAVİN!$A$3:$A$177470,MİZAN!A68,MUAVİN!$G$3:$G$177470)","v":0},{"$f":"SUMIF(MUAVİN!$A$3:$A$177470,MİZAN!A68,MUAVİN!$H$3:$H$177470)","v":0},0,0]
[268,"BİRİKMİŞ AMORTİSMANLAR (-)",{"$f":"SUMIF(MUAVİN!$A$3:$A$177470,MİZAN!A69,MUAVİN!$G$3:$G$177470)","v":0},{"$f":"SUMIF(MUAVİN!$A$3:$A$177470,MİZAN!A69,MUAVİN!$H$3:$H$177470)","v":0},0,0]
[269,"VERİLEN AVANSLAR",{"$f":"SUMIF(MUAVİN!$A$3:$A$177470,MİZAN!A70,MUAVİN!$G$3:$G$177470)","v":0},{"$f":"SUMIF(MUAVİN!$A$3:$A$177470,MİZAN!A70,MUAVİN!$H$3:$H$177470)","v":0},0,0]
[280,"GELECEK YILLARA AİT GİDERLER",{"$f":"SUMIF(MUAVİN!$A$3:$A$177470,MİZAN!A71,MUAVİN!$G$3:$G$177470)","v":0},{"$f":"SUMIF(MUAVİN!$A$3:$A$177470,MİZAN!A71,MUAVİN!$H$3:$H$177470)","v":0},0,0]
[281,"GELİR TAHAKKUKLARI",{"$f":"SUMIF(MUAVİN!$A$3:$A$177470,MİZAN!A72,MUAVİN!$G$3:$G$177470)","v":0},{"$f":"SUMIF(MUAVİN!$A$3:$A$177470,MİZAN!A72,MUAVİN!$H$3:$H$177470)","v":0},0,0]
[296,"GEÇİCİ HESAP",{"$f":"SUMIF(MUAVİN!$A$3:$A$177470,MİZAN!A73,MUAVİN!$G$3:$G$177470)","v":0},{"$f":"SUMIF(MUAVİN!$A$3:$A$177470,MİZAN!A73,MUAVİN!$H$3:$H$177470)","v":0},{"$f":"IF(C73>D73,C73-D73,0)","v":0},{"$f":"IF(D73>C73,D73-C73,0)","v":0}]
[297,"DİĞER ÇEŞİTLİ DURAN VARLIKLAR",{"$f":"SUMIF(MUAVİN!$A$3:$A$177470,MİZAN!A74,MUAVİN!$G$3:$G$177470)","v":0},{"$f":"SUMIF(MUAVİN!$A$3:$A$177470,MİZAN!A74,MUAVİN!$H$3:$H$177470)","v":0},0,0]
[300,"BANKA KREDİLERİ",{"$f":"SUMIF(MUAVİN!$A$3:$A$177470,MİZAN!A75,MUAVİN!$G$3:$G$177470)","v":0},{"$f":"SUMIF(MUAVİN!$A$3:$A$177470,MİZAN!A75,MUAVİN!$H$3:$H$177470)","v":0},0,0]
[301,"FİNANSAL KİRALAMADAN DOĞAN BORÇLAR",{"$f":"SUMIF(MUAVİN!$A$3:$A$177470,MİZAN!A76,MUAVİN!$G$3:$G$177470)","v":0},{"$f":"SUMIF(MUAVİN!$A$3:$A$177470,MİZAN!A76,MUAVİN!$H$3:$H$177470)","v":0},0,0]
[302,"ERT. FİN. KİR. BORÇLANMA MAL (-)",{"$f":"SUMIF(MUAVİN!$A$3:$A$177470,MİZAN!A77,MUAVİN!$G$3:$G$177470)","v":0},{"$f":"SUMIF(MUAVİN!$A$3:$A$177470,MİZAN!A77,MUAVİN!$H$3:$H$177470)","v":0},0,0]
[309,"DİĞER MALİ BORÇLAR",{"$f":"SUMIF(MUAVİN!$A$3:$A$177470,MİZAN!A78,MUAVİN!$G$3:$G$177470)","v":0},{"$f":"SUMIF(MUAVİN!$A$3:$A$177470,MİZAN!A78,MUAVİN!$H$3:$H$177470)","v":0},0,0]
[320,"SATICILAR",{"$f":"SUMIF(MUAVİN!$A$3:$A$177470,MİZAN!A79,MUAVİN!$G$3:$G$177470)","v":0},{"$f":"SUMIF(MUAVİN!$A$3:$A$177470,MİZAN!A79,MUAVİN!$H$3:$H$177470)","v":0},0,0]
[321,"BORÇ SENETLERİ",{"$f":"SUMIF(MUAVİN!$A$3:$A$177470,MİZAN!A80,MUAVİN!$G$3:$G$177470)","v":0},{"$f":"SUMIF(MUAVİN!$A$3:$A$177470,MİZAN!A80,MUAVİN!$H$3:$H$177470)","v":0},0,0]
[326,"ALINAN DEPOZİTO VE AVANSLAR",{"$f":"SUMIF(MUAVİN!$A$3:$A$177470,MİZAN!A81,MUAVİN!$G$3:$G$177470)","v":0},{"$f":"SUMIF(MUAVİN!$A$3:$A$177470,MİZAN!A81,MUAVİN!$H$3:$H$177470)","v":0},0,0]
[329,"DİĞER TİCARİ BORÇLAR",{"$f":"SUMIF(MUAVİN!$A$3:$A$177470,MİZAN!A82,MUAVİN!$G$3:$G$177470)","v":0},{"$f":"SUMIF(MUAVİN!$A$3:$A$177470,MİZAN!A82,MUAVİN!$H$3:$H$177470)","v":0},0,0]
[331,"ORTAKLARA BORÇLAR",{"$f":"SUMIF(MUAVİN!$A$3:$A$177470,MİZAN!A83,MUAVİN!$G$3:$G$177470)","v":0},{"$f":"SUMIF(MUAVİN!$A$3:$A$177470,MİZAN!A83,MUAVİN!$H$3:$H$177470)","v":0},0,0]
[332,"İŞTİRAKLERE BORÇLAR",{"$f":"SUMIF(MUAVİN!$A$3:$A$177470,MİZAN!A84,MUAVİN!$G$3:$G$177470)","v":0},{"$f":"SUMIF(MUAVİN!$A$3:$A$177470,MİZAN!A84,MUAVİN!$H$3:$H$177470)","v":0},0,0]
[333,"BAĞLI ORTAKLIKLARA BORÇLAR",{"$f":"SUMIF(MUAVİN!$A$3:$A$177470,MİZAN!A85,MUAVİN!$G$3:$G$177470)","v":0},{"$f":"SUMIF(MUAVİN!$A$3:$A$177470,MİZAN!A85,MUAVİN!$H$3:$H$177470)","v":0},0,0]
[335,"PERSONELE BORÇLAR",{"$f":"SUMIF(MUAVİN!$A$3:$A$177470,MİZAN!A86,MUAVİN!$G$3:$G$177470)","v":0},{"$f":"SUMIF(MUAVİN!$A$3:$A$177470,MİZAN!A86,MUAVİN!$H$3:$H$177470)","v":0},0,0]
[336,"DİĞER ÇEŞİTLİ BORÇLAR",{"$f":"SUMIF(MUAVİN!$A$3:$A$177470,MİZAN!A87,MUAVİN!$G$3:$G$177470)","v":0},{"$f":"SUMIF(MUAVİN!$A$3:$A$177470,MİZAN!A87,MUAVİN!$H$3:$H$177470)","v":0},0,0]
[340,"ALINAN SİPARİŞ AVANSLARI",{"$f":"SUMIF(MUAVİN!$A$3:$A$177470,MİZAN!A88,MUAVİN!$G$3:$G$177470)","v":0},{"$f":"SUMIF(MUAVİN!$A$3:$A$177470,MİZAN!A88,MUAVİN!$H$3:$H$177470)","v":0},0,0]
[349,"ALINAN DİĞER AVANSLAR",{"$f":"SUMIF(MUAVİN!$A$3:$A$177470,MİZAN!A89,MUAVİN!$G$3:$G$177470)","v":0},{"$f":"SUMIF(MUAVİN!$A$3:$A$177470,MİZAN!A89,MUAVİN!$H$3:$H$177470)","v":0},0,0]
[350,"YILLAR SAİR İNŞ VE HAK EDİŞ BEDELİ",{"$f":"SUMIF(MUAVİN!$A$3:$A$177470,MİZAN!A90,MUAVİN!$G$3:$G$177470)","v":0},{"$f":"SUMIF(MUAVİN!$A$3:$A$177470,MİZAN!A90,MUAVİN!$H$3:$H$177470)","v":0},0,0]
[360,"ÖDENECEK VERGİ VE FONLAR",{"$f":"SUMIF(MUAVİN!$A$3:$A$177470,MİZAN!A91,MUAVİN!$G$3:$G$177470)","v":0},{"$f":"SUMIF(MUAVİN!$A$3:$A$177470,MİZAN!A91,MUAVİN!$H$3:$H$177470)","v":0},0,0]
[361,"ÖDENECEK SOSYAL GÜVENLİK KESİNTİLERİ",{"$f":"SUMIF(MUAVİN!$A$3:$A$177470,MİZAN!A92,MUAVİN!$G$3:$G$177470)","v":0},{"$f":"SUMIF(MUAVİN!$A$3:$A$177470,MİZAN!A92,MUAVİN!$H$3:$H$177470)","v":0},0,0]
[368,"VADESİ ERTLENMİŞ VEYA TAKS. YÜKÜMLÜLÜKLER",{"$f":"SUMIF(MUAVİN!$A$3:$A$177470,MİZAN!A93,MUAVİN!$G$3:$G$177470)","v":0},{"$f":"SUMIF(MUAVİN!$A$3:$A$177470,MİZAN!A93,MUAVİN!$H$3:$H$177470)","v":0},0,0]
[369,"ÖDENECEK DİĞER YÜKÜMLÜLÜKLER",{"$f":"SUMIF(MUAVİN!$A$3:$A$177470,MİZAN!A94,MUAVİN!$G$3:$G$177470)","v":0},{"$f":"SUMIF(MUAVİN!$A$3:$A$177470,MİZAN!A94,MUAVİN!$H$3:$H$177470)","v":0},0,0]
[370," Dönem Karı Vergi ve Diğer",{"$f":"SUMIF(MUAVİN!$A$3:$A$177470,MİZAN!A95,MUAVİN!$G$3:$G$177470)","v":0},{"$f":"SUMIF(MUAVİN!$A$3:$A$177470,MİZAN!A95,MUAVİN!$H$3:$H$177470)","v":0},0,0]
[371," Dönem Karının Peşin Ödenen Vergi",{"$f":"SUMIF(MUAVİN!$A$3:$A$177470,MİZAN!A96,MUAVİN!$G$3:$G$177470)","v":0},{"$f":"SUMIF(MUAVİN!$A$3:$A$177470,MİZAN!A96,MUAVİN!$H$3:$H$177470)","v":0},0,0]
[372,"KIDEM TAZMİNAT KARŞILIĞI",{"$f":"SUMIF(MUAVİN!$A$3:$A$177470,MİZAN!A97,MUAVİN!$G$3:$G$177470)","v":0},{"$f":"SUMIF(MUAVİN!$A$3:$A$177470,MİZAN!A97,MUAVİN!$H$3:$H$177470)","v":0},0,0]
[373,"MALİYET GİDERLERİ KARŞILIĞI (-)",{"$f":"SUMIF(MUAVİN!$A$3:$A$177470,MİZAN!A98,MUAVİN!$G$3:$G$177470)","v":0},{"$f":"SUMIF(MUAVİN!$A$3:$A$177470,MİZAN!A98,MUAVİN!$H$3:$H$177470)","v":0},0,0]
[380,"GELECEK AYLARA AİT GİDERLER",{"$f":"SUMIF(MUAVİN!$A$3:$A$177470,MİZAN!A99,MUAVİN!$G$3:$G$177470)","v":0},{"$f":"SUMIF(MUAVİN!$A$3:$A$177470,MİZAN!A99,MUAVİN!$H$3:$H$177470)","v":0},0,0]
[381,"GİDER TAHAKKUKLARI",{"$f":"SUMIF(MUAVİN!$A$3:$A$177470,MİZAN!A100,MUAVİN!$G$3:$G$177470)","v":0},{"$f":"SUMIF(MUAVİN!$A$3:$A$177470,MİZAN!A100,MUAVİN!$H$3:$H$177470)","v":0},0,0]
[391,"HESAPLANAN KDV",{"$f":"SUMIF(MUAVİN!$A$3:$A$177470,MİZAN!A101,MUAVİN!$G$3:$G$177470)","v":0},{"$f":"SUMIF(MUAVİN!$A$3:$A$177470,MİZAN!A101,MUAVİN!$H$3:$H$177470)","v":0},0,0]
[392,"DİĞER KDV",{"$f":"SUMIF(MUAVİN!$A$3:$A$177470,MİZAN!A102,MUAVİN!$G$3:$G$177470)","v":0},{"$f":"SUMIF(MUAVİN!$A$3:$A$177470,MİZAN!A102,MUAVİN!$H$3:$H$177470)","v":0},0,0]
[393,"MERKEZ VE ŞUBE CARİ HESAP",{"$f":"SUMIF(MUAVİN!$A$3:$A$177470,MİZAN!A103,MUAVİN!$G$3:$G$177470)","v":0},{"$f":"SUMIF(MUAVİN!$A$3:$A$177470,MİZAN!A103,MUAVİN!$H$3:$H$177470)","v":0},0,0]
[397,"SAYIM VE TESELLÜM FAZLALIKLARI",{"$f":"SUMIF(MUAVİN!$A$3:$A$177470,MİZAN!A104,MUAVİN!$G$3:$G$177470)","v":0},{"$f":"SUMIF(MUAVİN!$A$3:$A$177470,MİZAN!A104,MUAVİN!$H$3:$H$177470)","v":0},0,0]
[399,"DİĞER YABANCI ÇEŞİTLİ KAYNAKLAR",{"$f":"SUMIF(MUAVİN!$A$3:$A$177470,MİZAN!A105,MUAVİN!$G$3:$G$177470)","v":0},{"$f":"SUMIF(MUAVİN!$A$3:$A$177470,MİZAN!A105,MUAVİN!$H$3:$H$177470)","v":0},{"$f":"IF(C105>D105,C105-D105,0)","v":0},{"$f":"IF(D105>C105,D105-C105,0)","v":0}]
[400,"BANKA KREDİLERİ",{"$f":"SUMIF(MUAVİN!$A$3:$A$177470,MİZAN!A106,MUAVİN!$G$3:$G$177470)","v":0},{"$f":"SUMIF(MUAVİN!$A$3:$A$177470,MİZAN!A106,MUAVİN!$H$3:$H$177470)","v":0},0,0]
[401,"FİNANSAL KİRALAMADAN DOĞAN BORÇLAR",{"$f":"SUMIF(MUAVİN!$A$3:$A$177470,MİZAN!A107,MUAVİN!$G$3:$G$177470)","v":0},{"$f":"SUMIF(MUAVİN!$A$3:$A$177470,MİZAN!A107,MUAVİN!$H$3:$H$177470)","v":0},0,0]
[409,"DİĞER MALİ BORÇLAR",{"$f":"SUMIF(MUAVİN!$A$3:$A$177470,MİZAN!A108,MUAVİN!$G$3:$G$177470)","v":0},{"$f":"SUMIF(MUAVİN!$A$3:$A$177470,MİZAN!A108,MUAVİN!$H$3:$H$177470)","v":0},0,0]
[402,"ERT. FİN. KİR. BORÇLANMA MAL (-)",{"$f":"SUMIF(MUAVİN!$A$3:$A$177470,MİZAN!A109,MUAVİN!$G$3:$G$177470)","v":0},{"$f":"SUMIF(MUAVİN!$A$3:$A$177470,MİZAN!A109,MUAVİN!$H$3:$H$177470)","v":0},0,0]
[420,"SATICILAR",{"$f":"SUMIF(MUAVİN!$A$3:$A$177470,MİZAN!A110,MUAVİN!$G$3:$G$177470)","v":0},{"$f":"SUMIF(MUAVİN!$A$3:$A$177470,MİZAN!A110,MUAVİN!$H$3:$H$177470)","v":0},0,0]
[421,"BORÇ SENETLERİ",{"$f":"SUMIF(MUAVİN!$A$3:$A$177470,MİZAN!A111,MUAVİN!$G$3:$G$177470)","v":0},{"$f":"SUMIF(MUAVİN!$A$3:$A$177470,MİZAN!A111,MUAVİN!$H$3:$H$177470)","v":0},0,0]
[426,"ALINAN DEPOZİTO VE AVANSLAR",{"$f":"SUMIF(MUAVİN!$A$3:$A$177470,MİZAN!A112,MUAVİN!$G$3:$G$177470)","v":0},{"$f":"SUMIF(MUAVİN!$A$3:$A$177470,MİZAN!A112,MUAVİN!$H$3:$H$177470)","v":0},0,0]
[429,"DİĞER TİCARİ BORÇLAR",{"$f":"SUMIF(MUAVİN!$A$3:$A$177470,MİZAN!A113,MUAVİN!$G$3:$G$177470)","v":0},{"$f":"SUMIF(MUAVİN!$A$3:$A$177470,MİZAN!A113,MUAVİN!$H$3:$H$177470)","v":0},{"$f":"IF(C113>D113,C113-D113,0)","v":0},{"$f":"IF(D113>C113,D113-C113,0)","v":0}]
[431,"ORTAKLARA BORÇLAR",{"$f":"SUMIF(MUAVİN!$A$3:$A$177470,MİZAN!A114,MUAVİN!$G$3:$G$177470)","v":0},{"$f":"SUMIF(MUAVİN!$A$3:$A$177470,MİZAN!A114,MUAVİN!$H$3:$H$177470)","v":0},0,0]
[432,"İŞTİRAKLERE BORÇLAR",{"$f":"SUMIF(MUAVİN!$A$3:$A$177470,MİZAN!A115,MUAVİN!$G$3:$G$177470)","v":0},{"$f":"SUMIF(MUAVİN!$A$3:$A$177470,MİZAN!A115,MUAVİN!$H$3:$H$177470)","v":0},{"$f":"IF(C115>D115,C115-D115,0)","v":0},{"$f":"IF(D115>C115,D115-C115,0)","v":0}]
[433,"BAĞLI ORTAKLIKLARA BORÇLAR",{"$f":"SUMIF(MUAVİN!$A$3:$A$177470,MİZAN!A116,MUAVİN!$G$3:$G$177470)","v":0},{"$f":"SUMIF(MUAVİN!$A$3:$A$177470,MİZAN!A116,MUAVİN!$H$3:$H$177470)","v":0},0,0]
[438,"KAMUYA OLAN ERTELENMİŞ BORÇLAR",{"$f":"SUMIF(MUAVİN!$A$3:$A$177470,MİZAN!A117,MUAVİN!$G$3:$G$177470)","v":0},{"$f":"SUMIF(MUAVİN!$A$3:$A$177470,MİZAN!A117,MUAVİN!$H$3:$H$177470)","v":0},{"$f":"IF(C117>D117,C117-D117,0)","v":0},{"$f":"IF(D117>C117,D117-C117,0)","v":0}]
[440,"ALINAN SİPARİŞ AVANSLARI",{"$f":"SUMIF(MUAVİN!$A$3:$A$177470,MİZAN!A118,MUAVİN!$G$3:$G$177470)","v":0},{"$f":"SUMIF(MUAVİN!$A$3:$A$177470,MİZAN!A118,MUAVİN!$H$3:$H$177470)","v":0},{"$f":"IF(C118>D118,C118-D118,0)","v":0},{"$f":"IF(D118>C118,D118-C118,0)","v":0}]
[449,"ALINAN DİĞER AVANSLAR",{"$f":"SUMIF(MUAVİN!$A$3:$A$177470,MİZAN!A119,MUAVİN!$G$3:$G$177470)","v":0},{"$f":"SUMIF(MUAVİN!$A$3:$A$177470,MİZAN!A119,MUAVİN!$H$3:$H$177470)","v":0},0,0]
[472,"KIDEM TAZMİNAT KARŞILIĞI",{"$f":"SUMIF(MUAVİN!$A$3:$A$177470,MİZAN!A120,MUAVİN!$G$3:$G$177470)","v":0},{"$f":"SUMIF(MUAVİN!$A$3:$A$177470,MİZAN!A120,MUAVİN!$H$3:$H$177470)","v":0},{"$f":"IF(C120>D120,C120-D120,0)","v":0},{"$f":"IF(D120>C120,D120-C120,0)","v":0}]
[480,"GELECEK YILLARA AİT GİDERLER",{"$f":"SUMIF(MUAVİN!$A$3:$A$177470,MİZAN!A121,MUAVİN!$G$3:$G$177470)","v":0},{"$f":"SUMIF(MUAVİN!$A$3:$A$177470,MİZAN!A121,MUAVİN!$H$3:$H$177470)","v":0},0,0]
[481,"GİDER TAHAKKUKLARI",{"$f":"SUMIF(MUAVİN!$A$3:$A$177470,MİZAN!A122,MUAVİN!$G$3:$G$177470)","v":0},{"$f":"SUMIF(MUAVİN!$A$3:$A$177470,MİZAN!A122,MUAVİN!$H$3:$H$177470)","v":0},0,0]
[500,"SERMAYE",{"$f":"SUMIF(MUAVİN!$A$3:$A$177470,MİZAN!A123,MUAVİN!$G$3:$G$177470)","v":0},{"$f":"SUMIF(MUAVİN!$A$3:$A$177470,MİZAN!A123,MUAVİN!$H$3:$H$177470)","v":2500000},0,2500000]
[501,"ÖDENMEMİŞ SERMAYE",{"$f":"SUMIF(MUAVİN!$A$3:$A$177470,MİZAN!A124,MUAVİN!$G$3:$G$177470)","v":0},{"$f":"SUMIF(MUAVİN!$A$3:$A$177470,MİZAN!A124,MUAVİN!$H$3:$H$177470)","v":0},0,0]
[502,"SERMAYE DÜZELTME OLUMLU FARKLAR",{"$f":"SUMIF(MUAVİN!$A$3:$A$177470,MİZAN!A125,MUAVİN!$G$3:$G$177470)","v":0},{"$f":"SUMIF(MUAVİN!$A$3:$A$177470,MİZAN!A125,MUAVİN!$H$3:$H$177470)","v":0},0,0]
[525,"EMTİA MAL",{"$f":"SUMIF(MUAVİN!$A$3:$A$177470,MİZAN!A126,MUAVİN!$G$3:$G$177470)","v":0},{"$f":"SUMIF(MUAVİN!$A$3:$A$177470,MİZAN!A126,MUAVİN!$H$3:$H$177470)","v":0},0,0]
[529,"DİĞER SERMAYE YEDEKLERİ",{"$f":"SUMIF(MUAVİN!$A$3:$A$177470,MİZAN!A127,MUAVİN!$G$3:$G$177470)","v":0},{"$f":"SUMIF(MUAVİN!$A$3:$A$177470,MİZAN!A127,MUAVİN!$H$3:$H$177470)","v":0},0,0]
[540,"YASAL YEDEKLER",{"$f":"SUMIF(MUAVİN!$A$3:$A$177470,MİZAN!A128,MUAVİN!$G$3:$G$177470)","v":0},{"$f":"SUMIF(MUAVİN!$A$3:$A$177470,MİZAN!A128,MUAVİN!$H$3:$H$177470)","v":0},0,0]
[541,"STATÜ YEDEKLER",{"$f":"SUMIF(MUAVİN!$A$3:$A$177470,MİZAN!A129,MUAVİN!$G$3:$G$177470)","v":0},{"$f":"SUMIF(MUAVİN!$A$3:$A$177470,MİZAN!A129,MUAVİN!$H$3:$H$177470)","v":0},0,0]
[542,"OLAĞANÜSTÜ YEDEKLER",{"$f":"SUMIF(MUAVİN!$A$3:$A$177470,MİZAN!A130,MUAVİN!$G$3:$G$177470)","v":0},{"$f":"SUMIF(MUAVİN!$A$3:$A$177470,MİZAN!A130,MUAVİN!$H$3:$H$177470)","v":0},0,0]
[549,"ÖZEL FONLAR",{"$f":"SUMIF(MUAVİN!$A$3:$A$177470,MİZAN!A131,MUAVİN!$G$3:$G$177470)","v":0},{"$f":"SUMIF(MUAVİN!$A$3:$A$177470,MİZAN!A131,MUAVİN!$H$3:$H$177470)","v":0},0,0]
[570,"GEÇMİŞ YIL KARLARI",{"$f":"SUMIF(MUAVİN!$A$3:$A$177470,MİZAN!A132,MUAVİN!$G$3:$G$177470)","v":0},{"$f":"SUMIF(MUAVİN!$A$3:$A$177470,MİZAN!A132,MUAVİN!$H$3:$H$177470)","v":0},0,0]
[580,"GEÇMİŞ YILLAR ZARARLARI",{"$f":"SUMIF(MUAVİN!$A$3:$A$177470,MİZAN!A133,MUAVİN!$G$3:$G$177470)","v":0},{"$f":"SUMIF(MUAVİN!$A$3:$A$177470,MİZAN!A133,MUAVİN!$H$3:$H$177470)","v":0},0,0]
[590,"DÖNEM NET KARI ",{"$f":"SUMIF(MUAVİN!$A$3:$A$177470,MİZAN!A134,MUAVİN!$G$3:$G$177470)","v":0},{"$f":"SUMIF(MUAVİN!$A$3:$A$177470,MİZAN!A134,MUAVİN!$H$3:$H$177470)","v":0},0,0]
[591,"DÖNEM NET ZARARI (-)",{"$f":"SUMIF(MUAVİN!$A$3:$A$177470,MİZAN!A135,MUAVİN!$G$3:$G$177470)","v":0},{"$f":"SUMIF(MUAVİN!$A$3:$A$177470,MİZAN!A135,MUAVİN!$H$3:$H$177470)","v":0},0,0]
[600,"YURTİÇİ SATIŞLAR",{"$f":"SUMIF(MUAVİN!$A$3:$A$177470,MİZAN!A136,MUAVİN!$G$3:$G$177470)","v":0},{"$f":"SUMIF(MUAVİN!$A$3:$A$177470,MİZAN!A136,MUAVİN!$H$3:$H$177470)","v":5500},0,5500]
[601,"YURTDIŞI SATIŞLAR",{"$f":"SUMIF(MUAVİN!$A$3:$A$177470,MİZAN!A137,MUAVİN!$G$3:$G$177470)","v":0},{"$f":"SUMIF(MUAVİN!$A$3:$A$177470,MİZAN!A137,MUAVİN!$H$3:$H$177470)","v":0},0,0]
[602,"DİĞER GELİRLER",{"$f":"SUMIF(MUAVİN!$A$3:$A$177470,MİZAN!A138,MUAVİN!$G$3:$G$177470)","v":0},{"$f":"SUMIF(MUAVİN!$A$3:$A$177470,MİZAN!A138,MUAVİN!$H$3:$H$177470)","v":0},0,0]
[610,"SATIŞTAN İADELER (-)",{"$f":"SUMIF(MUAVİN!$A$3:$A$177470,MİZAN!A139,MUAVİN!$G$3:$G$177470)","v":400},{"$f":"SUMIF(MUAVİN!$A$3:$A$177470,MİZAN!A139,MUAVİN!$H$3:$H$177470)","v":0},400,0]
[611,"SATIŞTAN İSKONTOLAR (-)",{"$f":"SUMIF(MUAVİN!$A$3:$A$177470,MİZAN!A140,MUAVİN!$G$3:$G$177470)","v":0},{"$f":"SUMIF(MUAVİN!$A$3:$A$177470,MİZAN!A140,MUAVİN!$H$3:$H$177470)","v":0},0,0]
[612,"DİĞER İNDİRİMLER",{"$f":"SUMIF(MUAVİN!$A$3:$A$177470,MİZAN!A141,MUAVİN!$G$3:$G$177470)","v":0},{"$f":"SUMIF(MUAVİN!$A$3:$A$177470,MİZAN!A141,MUAVİN!$H$3:$H$177470)","v":0},0,0]
[620,"SATILAN MAMUL MALİYETİ (-)",{"$f":"SUMIF(MUAVİN!$A$3:$A$177470,MİZAN!A142,MUAVİN!$G$3:$G$177470)","v":0},{"$f":"SUMIF(MUAVİN!$A$3:$A$177470,MİZAN!A142,MUAVİN!$H$3:$H$177470)","v":0},0,0]
[621,"SATILAN TİCARİ MALIN MALİYETİ (-)",{"$f":"SUMIF(MUAVİN!$A$3:$A$177470,MİZAN!A143,MUAVİN!$G$3:$G$177470)","v":0},{"$f":"SUMIF(MUAVİN!$A$3:$A$177470,MİZAN!A143,MUAVİN!$H$3:$H$177470)","v":0},0,0]
[622,"SATILAN HİZMET MALİYETİ (-)",{"$f":"SUMIF(MUAVİN!$A$3:$A$177470,MİZAN!A144,MUAVİN!$G$3:$G$177470)","v":0},{"$f":"SUMIF(MUAVİN!$A$3:$A$177470,MİZAN!A144,MUAVİN!$H$3:$H$177470)","v":0},0,0]
[623,"DİĞER SATIŞLARIN MALİYETİ (-)",{"$f":"SUMIF(MUAVİN!$A$3:$A$177470,MİZAN!A145,MUAVİN!$G$3:$G$177470)","v":0},{"$f":"SUMIF(MUAVİN!$A$3:$A$177470,MİZAN!A145,MUAVİN!$H$3:$H$177470)","v":0},0,0]
[630,"ARAŞTIRMA VE GELİŞTİRME GİDERLERİ",{"$f":"SUMIF(MUAVİN!$A$3:$A$177470,MİZAN!A146,MUAVİN!$G$3:$G$177470)","v":0},{"$f":"SUMIF(MUAVİN!$A$3:$A$177470,MİZAN!A146,MUAVİN!$H$3:$H$177470)","v":0},0,0]
[631,"PAZARLAMA, SATIŞ VE DAĞITIM GİDERLERİ (-)",{"$f":"SUMIF(MUAVİN!$A$3:$A$177470,MİZAN!A147,MUAVİN!$G$3:$G$177470)","v":0},{"$f":"SUMIF(MUAVİN!$A$3:$A$177470,MİZAN!A147,MUAVİN!$H$3:$H$177470)","v":0},0,0]
[632,"GENEL YÖNETİM GİDERLERİ (-)",{"$f":"SUMIF(MUAVİN!$A$3:$A$177470,MİZAN!A148,MUAVİN!$G$3:$G$177470)","v":0},{"$f":"SUMIF(MUAVİN!$A$3:$A$177470,MİZAN!A148,MUAVİN!$H$3:$H$177470)","v":0},0,0]
[640,"İŞTİRAKLERDEN TEMETTÜ GELİRLERİ",{"$f":"SUMIF(MUAVİN!$A$3:$A$177470,MİZAN!A149,MUAVİN!$G$3:$G$177470)","v":0},{"$f":"SUMIF(MUAVİN!$A$3:$A$177470,MİZAN!A149,MUAVİN!$H$3:$H$177470)","v":0},0,0]
[641,"BAĞLI ORTAKLIKLARDAN TEMETTÜ GELİRLERİ",{"$f":"SUMIF(MUAVİN!$A$3:$A$177470,MİZAN!A150,MUAVİN!$G$3:$G$177470)","v":0},{"$f":"SUMIF(MUAVİN!$A$3:$A$177470,MİZAN!A150,MUAVİN!$H$3:$H$177470)","v":0},0,0]
[642,"FAİZ GELİRLERİ",{"$f":"SUMIF(MUAVİN!$A$3:$A$177470,MİZAN!A151,MUAVİN!$G$3:$G$177470)","v":0},{"$f":"SUMIF(MUAVİN!$A$3:$A$177470,MİZAN!A151,MUAVİN!$H$3:$H$177470)","v":0},0,0]
[643,"KOMİSYON GELİRLERİ",{"$f":"SUMIF(MUAVİN!$A$3:$A$177470,MİZAN!A152,MUAVİN!$G$3:$G$177470)","v":0},{"$f":"SUMIF(MUAVİN!$A$3:$A$177470,MİZAN!A152,MUAVİN!$H$3:$H$177470)","v":0},0,0]
[644,"KONUSU KALMAYAN KARŞILIKLAR",{"$f":"SUMIF(MUAVİN!$A$3:$A$177470,MİZAN!A153,MUAVİN!$G$3:$G$177470)","v":0},{"$f":"SUMIF(MUAVİN!$A$3:$A$177470,MİZAN!A153,MUAVİN!$H$3:$H$177470)","v":0},0,0]
[645,"MENKUL KIYMET SATIŞ KARI",{"$f":"SUMIF(MUAVİN!$A$3:$A$177470,MİZAN!A154,MUAVİN!$G$3:$G$177470)","v":0},{"$f":"SUMIF(MUAVİN!$A$3:$A$177470,MİZAN!A154,MUAVİN!$H$3:$H$177470)","v":0},0,0]
[646,"KAMBİYO KARLARI",{"$f":"SUMIF(MUAVİN!$A$3:$A$177470,MİZAN!A155,MUAVİN!$G$3:$G$177470)","v":0},{"$f":"SUMIF(MUAVİN!$A$3:$A$177470,MİZAN!A155,MUAVİN!$H$3:$H$177470)","v":0},0,0]
[649,"FAALİYETLE İLGİLİ DİĞER GELİR VE KARLAR",{"$f":"SUMIF(MUAVİN!$A$3:$A$177470,MİZAN!A156,MUAVİN!$G$3:$G$177470)","v":0},{"$f":"SUMIF(MUAVİN!$A$3:$A$177470,MİZAN!A156,MUAVİN!$H$3:$H$177470)","v":0},0,0]
[653,"KOMİSYON GİDERLERİ",{"$f":"SUMIF(MUAVİN!$A$3:$A$177470,MİZAN!A157,MUAVİN!$G$3:$G$177470)","v":0},{"$f":"SUMIF(MUAVİN!$A$3:$A$177470,MİZAN!A157,MUAVİN!$H$3:$H$177470)","v":0},0,0]
[654,"Karşılık Giderlik",{"$f":"SUMIF(MUAVİN!$A$3:$A$177470,MİZAN!A158,MUAVİN!$G$3:$G$177470)","v":0},{"$f":"SUMIF(MUAVİN!$A$3:$A$177470,MİZAN!A158,MUAVİN!$H$3:$H$177470)","v":0},0,0]
[655,"MENKUL KITMET SATIŞ ZARARLARI",{"$f":"SUMIF(MUAVİN!$A$3:$A$177470,MİZAN!A159,MUAVİN!$G$3:$G$177470)","v":0},{"$f":"SUMIF(MUAVİN!$A$3:$A$177470,MİZAN!A159,MUAVİN!$H$3:$H$177470)","v":0},0,0]
[656,"KAMBİYO ZARARLARI (-)",{"$f":"SUMIF(MUAVİN!$A$3:$A$177470,MİZAN!A160,MUAVİN!$G$3:$G$177470)","v":0},{"$f":"SUMIF(MUAVİN!$A$3:$A$177470,MİZAN!A160,MUAVİN!$H$3:$H$177470)","v":0},0,0]
[659,"DİĞER OLAĞAN GİDER VE ZARARLAR (-)",{"$f":"SUMIF(MUAVİN!$A$3:$A$177470,MİZAN!A161,MUAVİN!$G$3:$G$177470)","v":0},{"$f":"SUMIF(MUAVİN!$A$3:$A$177470,MİZAN!A161,MUAVİN!$H$3:$H$177470)","v":0},0,0]
[660,"KISA VADELİ BORÇLANMA GİDERLERİ (-)",{"$f":"SUMIF(MUAVİN!$A$3:$A$177470,MİZAN!A162,MUAVİN!$G$3:$G$177470)","v":0},{"$f":"SUMIF(MUAVİN!$A$3:$A$177470,MİZAN!A162,MUAVİN!$H$3:$H$177470)","v":0},0,0]
[661,"UZUN VADELİ BORÇLANMA GİDERLERİ (-)",{"$f":"SUMIF(MUAVİN!$A$3:$A$177470,MİZAN!A163,MUAVİN!$G$3:$G$177470)","v":0},{"$f":"SUMIF(MUAVİN!$A$3:$A$177470,MİZAN!A163,MUAVİN!$H$3:$H$177470)","v":0},0,0]
[671,"ÖNCEKİ DÖNEM GELİR VE KARLAR",{"$f":"SUMIF(MUAVİN!$A$3:$A$177470,MİZAN!A164,MUAVİN!$G$3:$G$177470)","v":0},{"$f":"SUMIF(MUAVİN!$A$3:$A$177470,MİZAN!A164,MUAVİN!$H$3:$H$177470)","v":0},0,0]
[679,"DİĞER OLAĞANDIŞI GELİR VE KARLAR",{"$f":"SUMIF(MUAVİN!$A$3:$A$177470,MİZAN!A165,MUAVİN!$G$3:$G$177470)","v":0},{"$f":"SUMIF(MUAVİN!$A$3:$A$177470,MİZAN!A165,MUAVİN!$H$3:$H$177470)","v":0},0,0]
[680,"ÇALIŞMAYAN KISIM GİDER VE ZARARLARI (-)",{"$f":"SUMIF(MUAVİN!$A$3:$A$177470,MİZAN!A166,MUAVİN!$G$3:$G$177470)","v":0},{"$f":"SUMIF(MUAVİN!$A$3:$A$177470,MİZAN!A166,MUAVİN!$H$3:$H$177470)","v":0},0,0]
[681,"ÖNCEKİ DÖNEM GİDER VE ZARARLARI (-)",{"$f":"SUMIF(MUAVİN!$A$3:$A$177470,MİZAN!A167,MUAVİN!$G$3:$G$177470)","v":0},{"$f":"SUMIF(MUAVİN!$A$3:$A$177470,MİZAN!A167,MUAVİN!$H$3:$H$177470)","v":0},0,0]
[689,"DİĞER OLAĞANDIŞI GİDER VE ZARARLAR (-)",{"$f":"SUMIF(MUAVİN!$A$3:$A$177470,MİZAN!A168,MUAVİN!$G$3:$G$177470)","v":0},{"$f":"SUMIF(MUAVİN!$A$3:$A$177470,MİZAN!A168,MUAVİN!$H$3:$H$177470)","v":0},0,0]
[690,"DÖNEM KARI VEYA ZARARI",{"$f":"SUMIF(MUAVİN!$A$3:$A$177470,MİZAN!A169,MUAVİN!$G$3:$G$177470)","v":0},{"$f":"SUMIF(MUAVİN!$A$3:$A$177470,MİZAN!A169,MUAVİN!$H$3:$H$177470)","v":0},0,0]
[691,"DÖN.KARI VERGİ VE DİĞ.YASAL YÜKÜM.KARŞILIKLARI (-)",{"$f":"SUMIF(MUAVİN!$A$3:$A$177470,MİZAN!A170,MUAVİN!$G$3:$G$177470)","v":0},{"$f":"SUMIF(MUAVİN!$A$3:$A$177470,MİZAN!A170,MUAVİN!$H$3:$H$177470)","v":0},0,0]
[692,"DÖNEM NET KARI VEYA ZARARI",{"$f":"SUMIF(MUAVİN!$A$3:$A$177470,MİZAN!A171,MUAVİN!$G$3:$G$177470)","v":0},{"$f":"SUMIF(MUAVİN!$A$3:$A$177470,MİZAN!A171,MUAVİN!$H$3:$H$177470)","v":0},0,0]
[710,"DİREKT İLK MADDE VE MALZEME GİDERİ",{"$f":"SUMIF(MUAVİN!$A$3:$A$177470,MİZAN!A172,MUAVİN!$G$3:$G$177470)","v":0},{"$f":"SUMIF(MUAVİN!$A$3:$A$177470,MİZAN!A172,MUAVİN!$H$3:$H$177470)","v":0},0,0]
[711,"DİREKT İLK MADDE VE MALZEME GİDERİ YANS",{"$f":"SUMIF(MUAVİN!$A$3:$A$177470,MİZAN!A173,MUAVİN!$G$3:$G$177470)","v":0},{"$f":"SUMIF(MUAVİN!$A$3:$A$177470,MİZAN!A173,MUAVİN!$H$3:$H$177470)","v":0},0,0]
[720,"DİREK İŞÇİLİK GİDERİ",{"$f":"SUMIF(MUAVİN!$A$3:$A$177470,MİZAN!A174,MUAVİN!$G$3:$G$177470)","v":0},{"$f":"SUMIF(MUAVİN!$A$3:$A$177470,MİZAN!A174,MUAVİN!$H$3:$H$177470)","v":0},0,0]
[721,"DİREK İŞÇİLİK GİDERİ YANS",{"$f":"SUMIF(MUAVİN!$A$3:$A$177470,MİZAN!A175,MUAVİN!$G$3:$G$177470)","v":0},{"$f":"SUMIF(MUAVİN!$A$3:$A$177470,MİZAN!A175,MUAVİN!$H$3:$H$177470)","v":0},0,0]
[730,"GENEL ÜRETİM GİDERLERİ     ",{"$f":"SUMIF(MUAVİN!$A$3:$A$177470,MİZAN!A176,MUAVİN!$G$3:$G$177470)","v":0},{"$f":"SUMIF(MUAVİN!$A$3:$A$177470,MİZAN!A176,MUAVİN!$H$3:$H$177470)","v":0},0,0]
[731,"GENEL ÜRETİM GİDERLERİ YANS",{"$f":"SUMIF(MUAVİN!$A$3:$A$177470,MİZAN!A177,MUAVİN!$G$3:$G$177470)","v":0},{"$f":"SUMIF(MUAVİN!$A$3:$A$177470,MİZAN!A177,MUAVİN!$H$3:$H$177470)","v":0},0,0]
[740,"HİZMET ÜRETİM MALİYETİ     ",{"$f":"SUMIF(MUAVİN!$A$3:$A$177470,MİZAN!A178,MUAVİN!$G$3:$G$177470)","v":0},{"$f":"SUMIF(MUAVİN!$A$3:$A$177470,MİZAN!A178,MUAVİN!$H$3:$H$177470)","v":0},0,0]
[741,"HİZMET ÜRETİM MALİYETİ YANS",{"$f":"SUMIF(MUAVİN!$A$3:$A$177470,MİZAN!A179,MUAVİN!$G$3:$G$177470)","v":0},{"$f":"SUMIF(MUAVİN!$A$3:$A$177470,MİZAN!A179,MUAVİN!$H$3:$H$177470)","v":0},0,0]
[750,"ARAŞTIRMA VE GELİŞTİRME GİDERLERİ",{"$f":"SUMIF(MUAVİN!$A$3:$A$177470,MİZAN!A180,MUAVİN!$G$3:$G$177470)","v":500},{"$f":"SUMIF(MUAVİN!$A$3:$A$177470,MİZAN!A180,MUAVİN!$H$3:$H$177470)","v":0},500,0]
[751,"ARAŞTIRMA VE GELİŞTİRME GİDERLERİ YANS",{"$f":"SUMIF(MUAVİN!$A$3:$A$177470,MİZAN!A181,MUAVİN!$G$3:$G$177470)","v":0},{"$f":"SUMIF(MUAVİN!$A$3:$A$177470,MİZAN!A181,MUAVİN!$H$3:$H$177470)","v":0},0,0]
[760,"PAZARLAMA SATIŞ VE DAĞITIM ",{"$f":"SUMIF(MUAVİN!$A$3:$A$177470,MİZAN!A182,MUAVİN!$G$3:$G$177470)","v":600},{"$f":"SUMIF(MUAVİN!$A$3:$A$177470,MİZAN!A182,MUAVİN!$H$3:$H$177470)","v":0},{"$f":"IF(C182>D182,C182-D182,0)","v":600},{"$f":"IF(D182>C182,D182-C182,0)","v":0}]
[761,"PAZARLAMA SATIŞ VE DAĞITIM YANS",{"$f":"SUMIF(MUAVİN!$A$3:$A$177470,MİZAN!A183,MUAVİN!$G$3:$G$177470)","v":0},{"$f":"SUMIF(MUAVİN!$A$3:$A$177470,MİZAN!A183,MUAVİN!$H$3:$H$177470)","v":0},0,0]
[770,"GENEL YÖNETİM GİDERLERİ    ",{"$f":"SUMIF(MUAVİN!$A$3:$A$177470,MİZAN!A184,MUAVİN!$G$3:$G$177470)","v":700},{"$f":"SUMIF(MUAVİN!$A$3:$A$177470,MİZAN!A184,MUAVİN!$H$3:$H$177470)","v":0},700,0]
[771,"GENEL YÖNETİM GİDERLERİ YANS",{"$f":"SUMIF(MUAVİN!$A$3:$A$177470,MİZAN!A185,MUAVİN!$G$3:$G$177470)","v":0},{"$f":"SUMIF(MUAVİN!$A$3:$A$177470,MİZAN!A185,MUAVİN!$H$3:$H$177470)","v":0},0,0]
[780,"FİNANSMAN GİDERLERİ        ",{"$f":"SUMIF(MUAVİN!$A$3:$A$177470,MİZAN!A186,MUAVİN!$G$3:$G$177470)","v":800},{"$f":"SUMIF(MUAVİN!$A$3:$A$177470,MİZAN!A186,MUAVİN!$H$3:$H$177470)","v":0},800,0]
[781,"FİNANSMAN GİDERLERİ        ",{"$f":"SUMIF(MUAVİN!$A$3:$A$177470,MİZAN!A187,MUAVİN!$G$3:$G$177470)","v":0},{"$f":"SUMIF(MUAVİN!$A$3:$A$177470,MİZAN!A187,MUAVİN!$H$3:$H$177470)","v":0},0,0]
["TOPLAM",null,{"$f":"SUM(C3:C187)","v":10500},{"$f":"SUM(D3:D187)","v":2515300},{"$f":"SUM(E3:E187)","v":6200},{"$f":"SUM(F3:F187)","v":2511000}]

{"sheet":"BİLANÇO","index":2,"n_rows":137,"n_cols":8,"rows_kept":137,"cut":false,"hidden":false,"merged":[[1,1,1,7],[2,1,2,7]]}
[]
[null,"31/12/202.. TARİHLİ AYRINTILI "]
[null,"BİLANÇO"]
[]
[null,null,"AKTİF","Cari Dönem",null,null,"PASİF","Cari Dönem"]
[null,1,"DÖNEN VARLIKLAR",{"$f":"SUM(D7+D13+D20+D30+D39+D47+D51+D54)","v":8700},null,3,"KISA VADELİ YABANCI KAYNAKLAR",{"$f":"SUM(H7+H18+H24+H31+H34+H37+H43+H51+H55)","v":0}]
[null,10,"Hazır Değerler",{"$f":"SUM(D8,D9,D10,-D11,D12)","v":8700},null,30,"Mali Borçlar",{"$f":"SUM(H8,H9,-H10,H11,H12,H13,H14,H15,-H16,H17)","v":0}]
[null,100," Kasa",{"$f":"IF(ISERROR(VLOOKUP(B8,HESAP_KODU,5,FALSE)),0,IF(VLOOKUP(B8,HESAP_KODU,5,FALSE)=0,VLOOKUP(B8,HESAP_KODU,6,FALSE),VLOOKUP(B8,HESAP_KODU,5,FALSE)))","v":3200},null,300," Banka Kredileri",{"$f":"IF(ISERROR(VLOOKUP(F8,HESAP_KODU,5,FALSE)),0,IF(VLOOKUP(F8,HESAP_KODU,5,FALSE)=0,VLOOKUP(F8,HESAP_KODU,6,FALSE),VLOOKUP(F8,HESAP_KODU,5,FALSE)))","v":0}]
[null,101," Alınan Çekler",{"$f":"IF(ISERROR(VLOOKUP(B9,HESAP_KODU,5,FALSE)),0,IF(VLOOKUP(B9,HESAP_KODU,5,FALSE)=0,VLOOKUP(B9,HESAP_KODU,6,FALSE),VLOOKUP(B9,HESAP_KODU,5,FALSE)))","v":0},null,301," Finansal Kir.İşlemlerinden Doğan Borçlar",{"$f":"IF(ISERROR(VLOOKUP(F9,HESAP_KODU,5,FALSE)),0,IF(VLOOKUP(F9,HESAP_KODU,5,FALSE)=0,VLOOKUP(F9,HESAP_KODU,6,FALSE),VLOOKUP(F9,HESAP_KODU,5,FALSE)))","v":0}]
[null,102," Bankalar",{"$f":"IF(ISERROR(VLOOKUP(B10,HESAP_KODU,5,FALSE)),0,IF(VLOOKUP(B10,HESAP_KODU,5,FALSE)=0,VLOOKUP(B10,HESAP_KODU,6,FALSE),VLOOKUP(B10,HESAP_KODU,5,FALSE)))","v":5500},null,302," Ertelenmiş Fin.Kir.Borçlanma Mal. (-)",{"$f":"IF(ISERROR(VLOOKUP(F10,HESAP_KODU,5,FALSE)),0,IF(VLOOKUP(F10,HESAP_KODU,5,FALSE)=0,VLOOKUP(F10,HESAP_KODU,6,FALSE),VLOOKUP(F10,HESAP_KODU,5,FALSE)))","v":0}]
[null,103," Verilen Çekler ve Ödeme Emir.(-)",{"$f":"IF(ISERROR(VLOOKUP(B11,HESAP_KODU,5,FALSE)),0,IF(VLOOKUP(B11,HESAP_KODU,5,FALSE)=0,VLOOKUP(B11,HESAP_KODU,6,FALSE),VLOOKUP(B11,HESAP_KODU,5,FALSE)))","v":0},null,303," Uzun Vadeli Kredilerin ",{"$f":"IF(ISERROR(VLOOKUP(F11,HESAP_KODU,5,FALSE)),0,IF(VLOOKUP(F11,HESAP_KODU,5,FALSE)=0,VLOOKUP(F11,HESAP_KODU,6,FALSE),VLOOKUP(F11,HESAP_KODU,5,FALSE)))","v":0}]
[null,108," Diğer Hazır Değerler",{"$f":"IF(ISERROR(VLOOKUP(B12,HESAP_KODU,5,FALSE)),0,IF(VLOOKUP(B12,HESAP_KODU,5,FALSE)=0,VLOOKUP(B12,HESAP_KODU,6,FALSE),VLOOKUP(B12,HESAP_KODU,5,FALSE)))","v":0},null,null," Anapara Taksitleri ve Faizleri"]
[null,11,"Menkul Kıymetler ",{"$f":"SUM(D14,D15,D16,D17,-D18,-D19)","v":0},null,304," Tahvil, Anapara, Borç Taksit ve Faizleri",{"$f":"IF(ISERROR(VLOOKUP(F13,HESAP_KODU,5,FALSE)),0,IF(VLOOKUP(F13,HESAP_KODU,5,FALSE)=0,VLOOKUP(F13,HESAP_KODU,6,FALSE),VLOOKUP(F13,HESAP_KODU,5,FALSE)))","v":0}]
[null,110," Hisse Senetleri",{"$f":"IF(ISERROR(VLOOKUP(B14,HESAP_KODU,5,FALSE)),0,IF(VLOOKUP(B14,HESAP_KODU,5,FALSE)=0,VLOOKUP(B14,HESAP_KODU,6,FALSE),VLOOKUP(B14,HESAP_KODU,5,FALSE)))","v":0},null,305," Çıkarılmış Bonolar ve Senetler",{"$f":"IF(ISERROR(VLOOKUP(F14,HESAP_KODU,5,FALSE)),0,IF(VLOOKUP(F14,HESAP_KODU,5,FALSE)=0,VLOOKUP(F14,HESAP_KODU,6,FALSE),VLOOKUP(F14,HESAP_KODU,5,FALSE)))","v":0}]
[null,111," Özel Kesim Tahv. Senet ve Bon.",{"$f":"IF(ISERROR(VLOOKUP(B15,HESAP_KODU,5,FALSE)),0,IF(VLOOKUP(B15,HESAP_KODU,5,FALSE)=0,VLOOKUP(B15,HESAP_KODU,6,FALSE),VLOOKUP(B15,HESAP_KODU,5,FALSE)))","v":0},null,306," Çıkarılmış, Diğer Menkul Kıymetler",{"$f":"IF(ISERROR(VLOOKUP(F15,HESAP_KODU,5,FALSE)),0,IF(VLOOKUP(F15,HESAP_KODU,5,FALSE)=0,VLOOKUP(F15,HESAP_KODU,6,FALSE),VLOOKUP(F15,HESAP_KODU,5,FALSE)))","v":0}]
[null,112," Kamu Kesimi Tahv. Senet ve Bon.",{"$f":"IF(ISERROR(VLOOKUP(B16,HESAP_KODU,5,FALSE)),0,IF(VLOOKUP(B16,HESAP_KODU,5,FALSE)=0,VLOOKUP(B16,HESAP_KODU,6,FALSE),VLOOKUP(B16,HESAP_KODU,5,FALSE)))","v":0},null,308," Menkul Kıymetler İhraç Farkları (-)",{"$f":"IF(ISERROR(VLOOKUP(F16,HESAP_KODU,5,FALSE)),0,IF(VLOOKUP(F16,HESAP_KODU,5,FALSE)=0,VLOOKUP(F16,HESAP_KODU,6,FALSE),VLOOKUP(F16,HESAP_KODU,5,FALSE)))","v":0}]
[null,118," Diğer Menkul Kıymetler",{"$f":"IF(ISERROR(VLOOKUP(B17,HESAP_KODU,5,FALSE)),0,IF(VLOOKUP(B17,HESAP_KODU,5,FALSE)=0,VLOOKUP(B17,HESAP_KODU,6,FALSE),VLOOKUP(B17,HESAP_KODU,5,FALSE)))","v":0},null,309," Diğer Mali Borçlar",{"$f":"IF(ISERROR(VLOOKUP(F17,HESAP_KODU,5,FALSE)),0,IF(VLOOKUP(F17,HESAP_KODU,5,FALSE)=0,VLOOKUP(F17,HESAP_KODU,6,FALSE),VLOOKUP(F17,HESAP_KODU,5,FALSE)))","v":0}]
[null,119," Menkul Kıymetler Değer",{"$f":"IF(ISERROR(VLOOKUP(B18,HESAP_KODU,5,FALSE)),0,IF(VLOOKUP(B18,HESAP_KODU,5,FALSE)=0,VLOOKUP(B18,HESAP_KODU,6,FALSE),VLOOKUP(B18,HESAP_KODU,5,FALSE)))","v":0},null,32,"Ticari Borçlar",{"$f":"SUM(H19,H20,-H21,H22,H23)","v":0}]
[null,null," Düşüklüğü Karşılığı (-)",null,null,320," Satıcılar",{"$f":"IF(ISERROR(VLOOKUP(F19,HESAP_KODU,5,FALSE)),0,IF(VLOOKUP(F19,HESAP_KODU,5,FALSE)=0,VLOOKUP(F19,HESAP_KODU,6,FALSE),VLOOKUP(F19,HESAP_KODU,5,FALSE)))","v":0}]
[null,12,"Ticari Alacaklar",{"$f":"SUM(D21,D22,-D23,-D24,-D25,D26,D27,D28,-D29)","v":0},null,321," Borç Senetleri",{"$f":"IF(ISERROR(VLOOKUP(F20,HESAP_KODU,5,FALSE)),0,IF(VLOOKUP(F20,HESAP_KODU,5,FALSE)=0,VLOOKUP(F20,HESAP_KODU,6,FALSE),VLOOKUP(F20,HESAP_KODU,5,FALSE)))","v":0}]
[null,120," Alıcılar",{"$f":"IF(ISERROR(VLOOKUP(B21,HESAP_KODU,5,FALSE)),0,IF(VLOOKUP(B21,HESAP_KODU,5,FALSE)=0,VLOOKUP(B21,HESAP_KODU,6,FALSE),VLOOKUP(B21,HESAP_KODU,5,FALSE)))","v":0},null,322," Borç Senetleri Reeskontu (-)",{"$f":"IF(ISERROR(VLOOKUP(F21,HESAP_KODU,5,FALSE)),0,IF(VLOOKUP(F21,HESAP_KODU,5,FALSE)=0,VLOOKUP(F21,HESAP_KODU,6,FALSE),VLOOKUP(F21,HESAP_KODU,5,FALSE)))","v":0}]
[null,121," Alacak Senetleri",{"$f":"IF(ISERROR(VLOOKUP(B22,HESAP_KODU,5,FALSE)),0,IF(VLOOKUP(B22,HESAP_KODU,5,FALSE)=0,VLOOKUP(B22,HESAP_KODU,6,FALSE),VLOOKUP(B22,HESAP_KODU,5,FALSE)))","v":0},null,326," Alınan Depozito ve Teminatlar",{"$f":"IF(ISERROR(VLOOKUP(F22,HESAP_KODU,5,FALSE)),0,IF(VLOOKUP(F22,HESAP_KODU,5,FALSE)=0,VLOOKUP(F22,HESAP_KODU,6,FALSE),VLOOKUP(F22,HESAP_KODU,5,FALSE)))","v":0}]
[null,122," Alacak Senetleri Reeskontu (-)",{"$f":"IF(ISERROR(VLOOKUP(B23,HESAP_KODU,5,FALSE)),0,IF(VLOOKUP(B23,HESAP_KODU,5,FALSE)=0,VLOOKUP(B23,HESAP_KODU,6,FALSE),VLOOKUP(B23,HESAP_KODU,5,FALSE)))","v":0},null,329," Diğer Ticari Borçlar",{"$f":"IF(ISERROR(VLOOKUP(F23,HESAP_KODU,5,FALSE)),0,IF(VLOOKUP(F23,HESAP_KODU,5,FALSE)=0,VLOOKUP(F23,HESAP_KODU,6,FALSE),VLOOKUP(F23,HESAP_KODU,5,FALSE)))","v":0}]
[null,124," Kazanılmamış Finansal Kiralama ",{"$f":"IF(ISERROR(VLOOKUP(B24,HESAP_KODU,5,FALSE)),0,IF(VLOOKUP(B24,HESAP_KODU,5,FALSE)=0,VLOOKUP(B24,HESAP_KODU,6,FALSE),VLOOKUP(B24,HESAP_KODU,5,FALSE)))","v":0},null,33,"Diğer Borçlar",{"$f":"SUM(H25,H26,H27,H28,H29,-H30)","v":0}]
[null,null," Faiz Gelirleri (-)",null,null,331," Ortaklara Borçlar",{"$f":"IF(ISERROR(VLOOKUP(F25,HESAP_KODU,5,FALSE)),0,IF(VLOOKUP(F25,HESAP_KODU,5,FALSE)=0,VLOOKUP(F25,HESAP_KODU,6,FALSE),VLOOKUP(F25,HESAP_KODU,5,FALSE)))","v":0}]
[null,126," Verilen Depozito ve Teminatlar",{"$f":"IF(ISERROR(VLOOKUP(B26,HESAP_KODU,5,FALSE)),0,IF(VLOOKUP(B26,HESAP_KODU,5,FALSE)=0,VLOOKUP(B26,HESAP_KODU,6,FALSE),VLOOKUP(B26,HESAP_KODU,5,FALSE)))","v":0},null,332," İştiraklere Borçlar",0]
[null,127," Diğer Ticari Alacaklar",{"$f":"IF(ISERROR(VLOOKUP(B27,HESAP_KODU,5,FALSE)),0,IF(VLOOKUP(B27,HESAP_KODU,5,FALSE)=0,VLOOKUP(B27,HESAP_KODU,6,FALSE),VLOOKUP(B27,HESAP_KODU,5,FALSE)))","v":0},null,333," Bağlı Ortaklıklara Borçlar",0]
[null,128," Şüpheli Ticari Alacaklar",{"$f":"IF(ISERROR(VLOOKUP(B28,HESAP_KODU,5,FALSE)),0,IF(VLOOKUP(B28,HESAP_KODU,5,FALSE)=0,VLOOKUP(B28,HESAP_KODU,6,FALSE),VLOOKUP(B28,HESAP_KODU,5,FALSE)))","v":0},null,335," Personele Borçlar",0]
[null,129," Şüpheli Ticari Alacaklar Karş. (-)",{"$f":"IF(ISERROR(VLOOKUP(B29,HESAP_KODU,5,FALSE)),0,IF(VLOOKUP(B29,HESAP_KODU,5,FALSE)=0,VLOOKUP(B29,HESAP_KODU,6,FALSE),VLOOKUP(B29,HESAP_KODU,5,FALSE)))","v":0},null,336," Diğer Çeşitli Borçlar",0]
[null,13,"Diğer Alacaklar",{"$f":"SUM(D31,D32,D33,D34,D35,-D36,D37,-D38)","v":0},null,337," Diğer Borç Senetleri Reeskontu (-)",0]
[null,131," Ortaklardan Alacaklar",{"$f":"IF(ISERROR(VLOOKUP(B31,HESAP_KODU,5,FALSE)),0,IF(VLOOKUP(B31,HESAP_KODU,5,FALSE)=0,VLOOKUP(B31,HESAP_KODU,6,FALSE),VLOOKUP(B31,HESAP_KODU,5,FALSE)))","v":0},null,34,"Alınan Avanslar",{"$f":"SUM(H32:H33)","v":0}]
[null,132," İştiraklerden Alacaklar",0,null,340," Alınan Sipariş Avansları",{"$f":"IF(ISERROR(VLOOKUP(F32,HESAP_KODU,5,FALSE)),0,IF(VLOOKUP(F32,HESAP_KODU,5,FALSE)=0,VLOOKUP(F32,HESAP_KODU,6,FALSE),VLOOKUP(F32,HESAP_KODU,5,FALSE)))","v":0}]
[null,133," Bağlı Ortaklıklardan Alacaklar",0,null,349," Alınan Diğer Avanslar",{"$f":"IF(ISERROR(VLOOKUP(F33,HESAP_KODU,5,FALSE)),0,IF(VLOOKUP(F33,HESAP_KODU,5,FALSE)=0,VLOOKUP(F33,HESAP_KODU,6,FALSE),VLOOKUP(F33,HESAP_KODU,5,FALSE)))","v":0}]
[null,135," Personelden Alacaklar",0,null,35,"Yıllara Yaygın İnş. Ve On. Hak.",{"$f":"SUM(H35:H36)","v":0}]
[null,136," Diğer Çeşitli Alacaklar",0,null,350," Yıllara Yaygın İnş. Ve On. Hak. bedelleri",{"$f":"IF(ISERROR(VLOOKUP(F35,HESAP_KODU,5,FALSE)),0,IF(VLOOKUP(F35,HESAP_KODU,5,FALSE)=0,VLOOKUP(F35,HESAP_KODU,6,FALSE),VLOOKUP(F35,HESAP_KODU,5,FALSE)))","v":0}]
[null,137," Diğer Alacak Senetleri Reesk. (-)",0,null,358," Yıllara Yaygın İnş. Enflasyon Düz. Hesabı",{"$f":"IF(ISERROR(VLOOKUP(F36,HESAP_KODU,5,FALSE)),0,IF(VLOOKUP(F36,HESAP_KODU,5,FALSE)=0,VLOOKUP(F36,HESAP_KODU,6,FALSE),VLOOKUP(F36,HESAP_KODU,5,FALSE)))","v":0}]
[null,138," Şüpheli Diğer Alacaklar",0,null,36,"Ödenecek Vergi ve Diğer Yüküm.",{"$f":"SUM(H38:H42)","v":0}]
[null,139," Şüpheli Diğer Alacaklar Karşılığı (-)",0,null,360," Ödenecek Vergi ve Fonları",{"$f":"IF(ISERROR(VLOOKUP(F38,HESAP_KODU,5,FALSE)),0,IF(VLOOKUP(F38,HESAP_KODU,5,FALSE)=0,VLOOKUP(F38,HESAP_KODU,6,FALSE),VLOOKUP(F38,HESAP_KODU,5,FALSE)))","v":0}]
[null,15,"Stoklar",{"$f":"SUM(D40,D41,D42,D43,D44,-D45,D46)","v":0},null,361," Ödenecek Sosyal Güvenlik Kesintileri",{"$f":"IF(ISERROR(VLOOKUP(F39,HESAP_KODU,5,FALSE)),0,IF(VLOOKUP(F39,HESAP_KODU,5,FALSE)=0,VLOOKUP(F39,HESAP_KODU,6,FALSE),VLOOKUP(F39,HESAP_KODU,5,FALSE)))","v":0}]
[null,150," İlk Madde ve Malzeme",{"$f":"IF(ISERROR(VLOOKUP(B40,HESAP_KODU,5,FALSE)),0,IF(VLOOKUP(B40,HESAP_KODU,5,FALSE)=0,VLOOKUP(B40,HESAP_KODU,6,FALSE),VLOOKUP(B40,HESAP_KODU,5,FALSE)))","v":0},null,368," Vadesi Geçmiş Ert. veya Taksitlendirilmiş",{"$f":"IF(ISERROR(VLOOKUP(F40,HESAP_KODU,5,FALSE)),0,IF(VLOOKUP(F40,HESAP_KODU,5,FALSE)=0,VLOOKUP(F40,HESAP_KODU,6,FALSE),VLOOKUP(F40,HESAP_KODU,5,FALSE)))","v":0}]
[null,151," Yarı Mamüller",0,null,null," Vergi ve Diğer Yükümlülükler"]
[null,152," Mamüller",0,null,369," Ödenecek Diğer Yükümlülükler",{"$f":"IF(ISERROR(VLOOKUP(F42,HESAP_KODU,5,FALSE)),0,IF(VLOOKUP(F42,HESAP_KODU,5,FALSE)=0,VLOOKUP(F42,HESAP_KODU,6,FALSE),VLOOKUP(F42,HESAP_KODU,5,FALSE)))","v":0}]
[null,153," Ticari Mallar",0,null,37,"Borç ve Gider Karşılıkları",{"$f":"SUM(H44,H45,-H46,-H47,H48,H49,H50)","v":0}]
[null,157," Diğer Stoklar",0,null,370," Dönem Karı Vergi ve Diğer",{"$f":"IF(ISERROR(VLOOKUP(F44,HESAP_KODU,5,FALSE)),0,IF(VLOOKUP(F44,HESAP_KODU,5,FALSE)=0,VLOOKUP(F44,HESAP_KODU,6,FALSE),VLOOKUP(F44,HESAP_KODU,5,FALSE)))","v":0}]
[null,158," Stok Değer Düşüklüğü Karşılığı (-)",0,null,null," Yasal Yükümlülük Karşılıkları"]
[null,159," Verilen Sipariş Avansları",0,null,371," Dönem Karının Peşin Ödenen Vergi",{"$f":"IF(ISERROR(VLOOKUP(F46,HESAP_KODU,5,FALSE)),0,IF(VLOOKUP(F46,HESAP_KODU,5,FALSE)=0,VLOOKUP(F46,HESAP_KODU,6,FALSE),VLOOKUP(F46,HESAP_KODU,5,FALSE)))","v":0}]
[null,17,"Yıllara Yaygın İnş. Ve On. Mal.",{"$f":"SUM(D48:D50)","v":0},null,null," ve Diğer Yükümlülükleri (-)"]
[null,170," Yıllara Yaygın İnş. Ve On. Mal.",{"$f":"IF(ISERROR(VLOOKUP(B48,HESAP_KODU,5,FALSE)),0,IF(VLOOKUP(B48,HESAP_KODU,5,FALSE)=0,VLOOKUP(B48,HESAP_KODU,6,FALSE),VLOOKUP(B48,HESAP_KODU,5,FALSE)))","v":0},null,372," Kıdem Tazminatı Karşılığı",{"$f":"IF(ISERROR(VLOOKUP(F48,HESAP_KODU,5,FALSE)),0,IF(VLOOKUP(F48,HESAP_KODU,5,FALSE)=0,VLOOKUP(F48,HESAP_KODU,6,FALSE),VLOOKUP(F48,HESAP_KODU,5,FALSE)))","v":0}]
[null,178," Yıllara Yaygın İnş. Enf.Düz. Hes.",{"$f":"IF(ISERROR(VLOOKUP(B49,HESAP_KODU,5,FALSE)),0,IF(VLOOKUP(B49,HESAP_KODU,5,FALSE)=0,VLOOKUP(B49,HESAP_KODU,6,FALSE),VLOOKUP(B49,HESAP_KODU,5,FALSE)))","v":0},null,373," Maliyet Giderleri Karşılığı",{"$f":"IF(ISERROR(VLOOKUP(F49,HESAP_KODU,5,FALSE)),0,IF(VLOOKUP(F49,HESAP_KODU,5,FALSE)=0,VLOOKUP(F49,HESAP_KODU,6,FALSE),VLOOKUP(F49,HESAP_KODU,5,FALSE)))","v":0}]
[null,179," Taşeronlara Verilen Avanslar",{"$f":"IF(ISERROR(VLOOKUP(B50,HESAP_KODU,5,FALSE)),0,IF(VLOOKUP(B50,HESAP_KODU,5,FALSE)=0,VLOOKUP(B50,HESAP_KODU,6,FALSE),VLOOKUP(B50,HESAP_KODU,5,FALSE)))","v":0},null,379," Diğer Borç ve Gider Karşılıkları",{"$f":"IF(ISERROR(VLOOKUP(F50,HESAP_KODU,5,FALSE)),0,IF(VLOOKUP(F50,HESAP_KODU,5,FALSE)=0,VLOOKUP(F50,HESAP_KODU,6,FALSE),VLOOKUP(F50,HESAP_KODU,5,FALSE)))","v":0}]
[null,18,"Gel. Ayl. Ait Gid. Ve Gelir Tah.",{"$f":"SUM(D52:D53)","v":0},null,38,"Gelecek Aylara Ait Gelirler ve Gider",{"$f":"SUM(H53:H54)","v":0}]
[null,180," Gelecek Aylara Ait Giderler",{"$f":"IF(ISERROR(VLOOKUP(B52,HESAP_KODU,5,FALSE)),0,IF(VLOOKUP(B52,HESAP_KODU,5,FALSE)=0,VLOOKUP(B52,HESAP_KODU,6,FALSE),VLOOKUP(B52,HESAP_KODU,5,FALSE)))","v":0},null,null,"Tahakkukları"]
[null,181," Gelir Tahakkukları",{"$f":"IF(ISERROR(VLOOKUP(B53,HESAP_KODU,5,FALSE)),0,IF(VLOOKUP(B53,HESAP_KODU,5,FALSE)=0,VLOOKUP(B53,HESAP_KODU,6,FALSE),VLOOKUP(B53,HESAP_KODU,5,FALSE)))","v":0},null,380," Gelecek Aylara Ait Gelirler",{"$f":"IF(ISERROR(VLOOKUP(F53,HESAP_KODU,5,FALSE)),0,IF(VLOOKUP(F53,HESAP_KODU,5,FALSE)=0,VLOOKUP(F53,HESAP_KODU,6,FALSE),VLOOKUP(F53,HESAP_KODU,5,FALSE)))","v":0}]
[null,19,"Diğer Dönen Varlıklar",{"$f":"SUM(D55,D56,D57,D58,D59,D60,D61,D62,-D63)","v":0},null,381," Gider Tahakkukları",{"$f":"IF(ISERROR(VLOOKUP(F54,HESAP_KODU,5,FALSE)),0,IF(VLOOKUP(F54,HESAP_KODU,5,FALSE)=0,VLOOKUP(F54,HESAP_KODU,6,FALSE),VLOOKUP(F54,HESAP_KODU,5,FALSE)))","v":0}]
[null,190," Devreden KDV",{"$f":"IF(ISERROR(VLOOKUP(B55,HESAP_KODU,5,FALSE)),0,IF(VLOOKUP(B55,HESAP_KODU,5,FALSE)=0,VLOOKUP(B55,HESAP_KODU,6,FALSE),VLOOKUP(B55,HESAP_KODU,5,FALSE)))","v":0},null,39,"Diğer Kısa Vadeli Yabancı Kaynaklar",{"$f":"SUM(H56:H63)","v":0}]
[null,191," İndirilecek KDV",0,null,391," Hesaplanan KDV",{"$f":"IF(ISERROR(VLOOKUP(F56,HESAP_KODU,5,FALSE)),0,IF(VLOOKUP(F56,HESAP_KODU,5,FALSE)=0,VLOOKUP(F56,HESAP_KODU,6,FALSE),VLOOKUP(F56,HESAP_KODU,5,FALSE)))","v":0}]
[null,192," Diğer KDV",0,null,392," Diğer KDV",{"$f":"IF(ISERROR(VLOOKUP(F57,HESAP_KODU,5,FALSE)),0,IF(VLOOKUP(F57,HESAP_KODU,5,FALSE)=0,VLOOKUP(F57,HESAP_KODU,6,FALSE),VLOOKUP(F57,HESAP_KODU,5,FALSE)))","v":0}]
[null,193," Peşin Ödenen Vergiler ve Fonlar",0,null,393," Merkez Ve Şubeler Cari Hesabı",{"$f":"IF(ISERROR(VLOOKUP(F58,HESAP_KODU,5,FALSE)),0,IF(VLOOKUP(F58,HESAP_KODU,5,FALSE)=0,VLOOKUP(F58,HESAP_KODU,6,FALSE),VLOOKUP(F58,HESAP_KODU,5,FALSE)))","v":0}]
[null,195,"İş avansı",0]
[null,196," Personel Avansları",0,null,397," Sayım ve Tesellüm Fazlaları",{"$f":"IF(ISERROR(VLOOKUP(F60,HESAP_KODU,5,FALSE)),0,IF(VLOOKUP(F60,HESAP_KODU,5,FALSE)=0,VLOOKUP(F60,HESAP_KODU,6,FALSE),VLOOKUP(F60,HESAP_KODU,5,FALSE)))","v":0}]
[null,197," Sayım ve Tesellüm Noksanları",0,null,399," Diğer Çeşitli Yabancı Kaynaklar",{"$f":"IF(ISERROR(VLOOKUP(F61,HESAP_KODU,5,FALSE)),0,IF(VLOOKUP(F61,HESAP_KODU,5,FALSE)=0,VLOOKUP(F61,HESAP_KODU,6,FALSE),VLOOKUP(F61,HESAP_KODU,5,FALSE)))","v":0}]
[null,198," Diğer Çeşitli Dönen Varlıklar",0]
[null,199," Diğer Dönen Varlıklar Karşılığı (-)",0]
[null,2,"DURAN VARLIKLAR",{"$f":"SUM(D65+D72+D80+D94+D105+D114+D120+D124)","v":0},null,4,"UZUN VADELİ YABANCI KAYNAKLAR",{"$f":"SUM(H65+H74+H80+H87+H90+H93+H97)","v":0}]
[null,22,"Ticari Alacaklar",{"$f":"SUM(D66,D67,-D68,-D69,D70,-D71)","v":0},null,40,"Mali Borçlar",{"$f":"SUM(H66,H67,-H68,H69,H70,H71,-H72,H73)","v":0}]
[null,220," Alıcılar",{"$f":"IF(ISERROR(VLOOKUP(B66,HESAP_KODU,5,FALSE)),0,IF(VLOOKUP(B66,HESAP_KODU,5,FALSE)=0,VLOOKUP(B66,HESAP_KODU,6,FALSE),VLOOKUP(B66,HESAP_KODU,5,FALSE)))","v":0},null,400," Banka Kredileri",{"$f":"IF(ISERROR(VLOOKUP(F66,HESAP_KODU,5,FALSE)),0,IF(VLOOKUP(F66,HESAP_KODU,5,FALSE)=0,VLOOKUP(F66,HESAP_KODU,6,FALSE),VLOOKUP(F66,HESAP_KODU,5,FALSE)))","v":0}]
[null,221," Alacak Senetleri",0,null,401," Finansal Kir.İşlemlerinden Doğan Borçlar",{"$f":"IF(ISERROR(VLOOKUP(F67,HESAP_KODU,5,FALSE)),0,IF(VLOOKUP(F67,HESAP_KODU,5,FALSE)=0,VLOOKUP(F67,HESAP_KODU,6,FALSE),VLOOKUP(F67,HESAP_KODU,5,FALSE)))","v":0}]
[null,222," Alacak Senetleri Reeskontu (-)",0,null,402," Ertelenmiş Fin.Kir.Borçlanma Mal. (-)",{"$f":"IF(ISERROR(VLOOKUP(F68,HESAP_KODU,5,FALSE)),0,IF(VLOOKUP(F68,HESAP_KODU,5,FALSE)=0,VLOOKUP(F68,HESAP_KODU,6,FALSE),VLOOKUP(F68,HESAP_KODU,5,FALSE)))","v":0}]
[null,224," Kazanılmamış Fin. Kir. Faiz Gelirleri (-)",0,null,405," Çıkarılmış Tahviller",{"$f":"IF(ISERROR(VLOOKUP(F69,HESAP_KODU,5,FALSE)),0,IF(VLOOKUP(F69,HESAP_KODU,5,FALSE)=0,VLOOKUP(F69,HESAP_KODU,6,FALSE),VLOOKUP(F69,HESAP_KODU,5,FALSE)))","v":0}]
[null,226," Verilen Depozito ve Teminatlar",0,null,407," Çıkarılmış Diğer Menkul",{"$f":"IF(ISERROR(VLOOKUP(F70,HESAP_KODU,5,FALSE)),0,IF(VLOOKUP(F70,HESAP_KODU,5,FALSE)=0,VLOOKUP(F70,HESAP_KODU,6,FALSE),VLOOKUP(F70,HESAP_KODU,5,FALSE)))","v":0}]
[null,229," Şüpheli Alacaklar Karşılığı (-)",0,null,null," Kıymetler"]
[null,23,"Diğer Alacaklar",{"$f":"SUM(D73,D74,D75,D76,D77,-D78,-D79)","v":0},null,408," Menkul Kıymetler İhraç Farkı (-)",{"$f":"IF(ISERROR(VLOOKUP(F72,HESAP_KODU,5,FALSE)),0,IF(VLOOKUP(F72,HESAP_KODU,5,FALSE)=0,VLOOKUP(F72,HESAP_KODU,6,FALSE),VLOOKUP(F72,HESAP_KODU,5,FALSE)))","v":0}]
[null,231," Ortaklardan Alacaklar",{"$f":"IF(ISERROR(VLOOKUP(B73,HESAP_KODU,5,FALSE)),0,IF(VLOOKUP(B73,HESAP_KODU,5,FALSE)=0,VLOOKUP(B73,HESAP_KODU,6,FALSE),VLOOKUP(B73,HESAP_KODU,5,FALSE)))","v":0},null,409," Diğer Mali Borçlar",{"$f":"IF(ISERROR(VLOOKUP(F73,HESAP_KODU,5,FALSE)),0,IF(VLOOKUP(F73,HESAP_KODU,5,FALSE)=0,VLOOKUP(F73,HESAP_KODU,6,FALSE),VLOOKUP(F73,HESAP_KODU,5,FALSE)))","v":0}]
[null,232," İştiraklerden Alacaklar",0,null,42,"Ticari Borçlar",{"$f":"SUM(H75,H76,-H77,H78,H79)","v":0}]
[null,233," Bağlı Ortaklıklardan Alacaklar",0,null,420," Satıcılar",{"$f":"IF(ISERROR(VLOOKUP(F75,HESAP_KODU,5,FALSE)),0,IF(VLOOKUP(F75,HESAP_KODU,5,FALSE)=0,VLOOKUP(F75,HESAP_KODU,6,FALSE),VLOOKUP(F75,HESAP_KODU,5,FALSE)))","v":0}]
[null,235," Personelden Alacaklar",0,null,421," Borç Senetleri",{"$f":"IF(ISERROR(VLOOKUP(F76,HESAP_KODU,5,FALSE)),0,IF(VLOOKUP(F76,HESAP_KODU,5,FALSE)=0,VLOOKUP(F76,HESAP_KODU,6,FALSE),VLOOKUP(F76,HESAP_KODU,5,FALSE)))","v":0}]
[null,236," Diğer Çeşitli Alacaklar",0,null,422," Borç Senetleri Reeskontu (-)",{"$f":"IF(ISERROR(VLOOKUP(F77,HESAP_KODU,5,FALSE)),0,IF(VLOOKUP(F77,HESAP_KODU,5,FALSE)=0,VLOOKUP(F77,HESAP_KODU,6,FALSE),VLOOKUP(F77,HESAP_KODU,5,FALSE)))","v":0}]
[null,237," Diğer Alacak Senetleri Reeskontu (-)",0,null,426," Alınan Depozito ve Teminatlar",{"$f":"IF(ISERROR(VLOOKUP(F78,HESAP_KODU,5,FALSE)),0,IF(VLOOKUP(F78,HESAP_KODU,5,FALSE)=0,VLOOKUP(F78,HESAP_KODU,6,FALSE),VLOOKUP(F78,HESAP_KODU,5,FALSE)))","v":0}]
[null,239," Şüpheli Alacaklar Karşılığı (-)",0,null,429," Diğer Ticari Borçlar",{"$f":"IF(ISERROR(VLOOKUP(F79,HESAP_KODU,5,FALSE)),0,IF(VLOOKUP(F79,HESAP_KODU,5,FALSE)=0,VLOOKUP(F79,HESAP_KODU,6,FALSE),VLOOKUP(F79,HESAP_KODU,5,FALSE)))","v":0}]
[null,24,"Mali Duran Varlıklar",{"$f":"SUM(D81,-D82,-D83,D84,-D85,-D86,-D87,D88,-D89,-D90,-D91,-D92,-D93)","v":0},null,43,"Diğer Borçlar",{"$f":"SUM(H81,H82,H83,H84,-H85,H86)","v":0}]
[null,240," Bağlı Menkul Kıymetler",{"$f":"IF(ISERROR(VLOOKUP(B81,HESAP_KODU,5,FALSE)),0,IF(VLOOKUP(B81,HESAP_KODU,5,FALSE)=0,VLOOKUP(B81,HESAP_KODU,6,FALSE),VLOOKUP(B81,HESAP_KODU,5,FALSE)))","v":0},null,431," Ortaklara Borçlar",{"$f":"IF(ISERROR(VLOOKUP(F81,HESAP_KODU,5,FALSE)),0,IF(VLOOKUP(F81,HESAP_KODU,5,FALSE)=0,VLOOKUP(F81,HESAP_KODU,6,FALSE),VLOOKUP(F81,HESAP_KODU,5,FALSE)))","v":0}]
[null,241," Bağlı Menkul Kıymetler Değer",{"$f":"IF(ISERROR(VLOOKUP(B82,HESAP_KODU,5,FALSE)),0,IF(VLOOKUP(B82,HESAP_KODU,5,FALSE)=0,VLOOKUP(B82,HESAP_KODU,6,FALSE),VLOOKUP(B82,HESAP_KODU,5,FALSE)))","v":0},null,432," İştiraklere Borçlar",0]
[null,null," Düşüklüğü Karşılığı (-)",null,null,433," Bağlı Ortaklıklara Borçlar",0]
[null,242," İştirakler",{"$f":"IF(ISERROR(VLOOKUP(B84,HESAP_KODU,5,FALSE)),0,IF(VLOOKUP(B84,HESAP_KODU,5,FALSE)=0,VLOOKUP(B84,HESAP_KODU,6,FALSE),VLOOKUP(B84,HESAP_KODU,5,FALSE)))","v":0},null,436," Diğer Çeşitli Borçlar",0]
[null,243," İştiraklere Sermaye Taahhütleri (-)",{"$f":"IF(ISERROR(VLOOKUP(B85,HESAP_KODU,5,FALSE)),0,IF(VLOOKUP(B85,HESAP_KODU,5,FALSE)=0,VLOOKUP(B85,HESAP_KODU,6,FALSE),VLOOKUP(B85,HESAP_KODU,5,FALSE)))","v":0},null,437," Diğer Borç Senetleri Reeskontu (-)",0]
[null,244," İştirakler Sermaye Payları Değer",{"$f":"IF(ISERROR(VLOOKUP(B86,HESAP_KODU,5,FALSE)),0,IF(VLOOKUP(B86,HESAP_KODU,5,FALSE)=0,VLOOKUP(B86,HESAP_KODU,6,FALSE),VLOOKUP(B86,HESAP_KODU,5,FALSE)))","v":0},null,438," Kamuya Olan Ert. veya Taksitl. Borçlar",0]
[null,null," Değer Düşüklüğü Karşılığı (-)",null,null,44,"Alınan Avanslar",{"$f":"SUM(H88:H89)","v":0}]
[null,245," Bağlı Ortaklıklar",{"$f":"IF(ISERROR(VLOOKUP(B88,HESAP_KODU,5,FALSE)),0,IF(VLOOKUP(B88,HESAP_KODU,5,FALSE)=0,VLOOKUP(B88,HESAP_KODU,6,FALSE),VLOOKUP(B88,HESAP_KODU,5,FALSE)))","v":0},null,440," Alınan Sipariş Avansları",{"$f":"IF(ISERROR(VLOOKUP(F88,HESAP_KODU,5,FALSE)),0,IF(VLOOKUP(F88,HESAP_KODU,5,FALSE)=0,VLOOKUP(F88,HESAP_KODU,6,FALSE),VLOOKUP(F88,HESAP_KODU,5,FALSE)))","v":0}]
[null,246," Bağlı Ortaklıklara Sermaye",{"$f":"IF(ISERROR(VLOOKUP(B89,HESAP_KODU,5,FALSE)),0,IF(VLOOKUP(B89,HESAP_KODU,5,FALSE)=0,VLOOKUP(B89,HESAP_KODU,6,FALSE),VLOOKUP(B89,HESAP_KODU,5,FALSE)))","v":0},null,449," Alınan Diğer Avanslar",{"$f":"IF(ISERROR(VLOOKUP(F89,HESAP_KODU,5,FALSE)),0,IF(VLOOKUP(F89,HESAP_KODU,5,FALSE)=0,VLOOKUP(F89,HESAP_KODU,6,FALSE),VLOOKUP(F89,HESAP_KODU,5,FALSE)))","v":0}]
[null,null," Taahhütleri (-)",null,null,47,"Borç ve Gider Karşılıkları",{"$f":"SUM(H91:H92)","v":0}]
[null,247," Bağlı Ortaklıklar Sermaye Payları",{"$f":"IF(ISERROR(VLOOKUP(B91,HESAP_KODU,5,FALSE)),0,IF(VLOOKUP(B91,HESAP_KODU,5,FALSE)=0,VLOOKUP(B91,HESAP_KODU,6,FALSE),VLOOKUP(B91,HESAP_KODU,5,FALSE)))","v":0},null,472," Kıdem Tazminatı Karşılıkları",{"$f":"IF(ISERROR(VLOOKUP(F91,HESAP_KODU,5,FALSE)),0,IF(VLOOKUP(F91,HESAP_KODU,5,FALSE)=0,VLOOKUP(F91,HESAP_KODU,6,FALSE),VLOOKUP(F91,HESAP_KODU,5,FALSE)))","v":0}]
[null,null," Değer Düşüklüğü Karşılığı (-)",null,null,479," Diğer Borç ve Gider Karşılıkları",{"$f":"IF(ISERROR(VLOOKUP(F92,HESAP_KODU,5,FALSE)),0,IF(VLOOKUP(F92,HESAP_KODU,5,FALSE)=0,VLOOKUP(F92,HESAP_KODU,6,FALSE),VLOOKUP(F92,HESAP_KODU,5,FALSE)))","v":0}]
[null,249," Diğer Mali Duran Varlıklar Karşılığı (-)",{"$f":"IF(ISERROR(VLOOKUP(B93,HESAP_KODU,5,FALSE)),0,IF(VLOOKUP(B93,HESAP_KODU,5,FALSE)=0,VLOOKUP(B93,HESAP_KODU,6,FALSE),VLOOKUP(B93,HESAP_KODU,5,FALSE)))","v":0},null,48,"Gelecek Yıllara Ait Gelirler ve ",{"$f":"SUM(H95:H96)","v":0}]
[null,25,"Maddi Duran Varlıklar",{"$f":"SUM(D95,D96,D97,D98,D99,D100,D101,-D102,D103,D104)","v":0},null,null,"Gider Tahakkukları"]
[null,250," Arazi ve Arsalar",{"$f":"IF(ISERROR(VLOOKUP(B95,HESAP_KODU,5,FALSE)),0,IF(VLOOKUP(B95,HESAP_KODU,5,FALSE)=0,VLOOKUP(B95,HESAP_KODU,6,FALSE),VLOOKUP(B95,HESAP_KODU,5,FALSE)))","v":0},null,480," Gelecek Yıllara Ait Gelirler",{"$f":"IF(ISERROR(VLOOKUP(F95,HESAP_KODU,5,FALSE)),0,IF(VLOOKUP(F95,HESAP_KODU,5,FALSE)=0,VLOOKUP(F95,HESAP_KODU,6,FALSE),VLOOKUP(F95,HESAP_KODU,5,FALSE)))","v":0}]
[null,251," Yeraltı ve Yerüstü Düzenleri",0,null,481," Gider Tahakkukları",{"$f":"IF(ISERROR(VLOOKUP(F96,HESAP_KODU,5,FALSE)),0,IF(VLOOKUP(F96,HESAP_KODU,5,FALSE)=0,VLOOKUP(F96,HESAP_KODU,6,FALSE),VLOOKUP(F96,HESAP_KODU,5,FALSE)))","v":0}]
[null,252," Binalar",0,null,49,"Diğer Uzun Vadeli Yabancı Kaynaklar",{"$f":"SUM(H98:H101)","v":0}]
[null,253," Tesis, Makine ve Cihazlar",0,null,492," Gelecek Yıllara Eklenen veya",{"$f":"IF(ISERROR(VLOOKUP(F98,HESAP_KODU,5,FALSE)),0,IF(VLOOKUP(F98,HESAP_KODU,5,FALSE)=0,VLOOKUP(F98,HESAP_KODU,6,FALSE),VLOOKUP(F98,HESAP_KODU,5,FALSE)))","v":0}]
[null,254," Taşıtlar",0,null,null," Terkin Edilen KDV"]
[null,255," Demirbaşlar",0,null,493," Tesise Katılma Payları",{"$f":"IF(ISERROR(VLOOKUP(F100,HESAP_KODU,5,FALSE)),0,IF(VLOOKUP(F100,HESAP_KODU,5,FALSE)=0,VLOOKUP(F100,HESAP_KODU,6,FALSE),VLOOKUP(F100,HESAP_KODU,5,FALSE)))","v":0}]
[null,256," Diğer Maddi Duran Varlıklar",0,null,499," Diğer Çeşitli Uzun Vadeli Yabancı Kay.",{"$f":"IF(ISERROR(VLOOKUP(F101,HESAP_KODU,5,FALSE)),0,IF(VLOOKUP(F101,HESAP_KODU,5,FALSE)=0,VLOOKUP(F101,HESAP_KODU,6,FALSE),VLOOKUP(F101,HESAP_KODU,5,FALSE)))","v":0}]
[null,257," Birikmiş Amortismanlar (-)",0]
[null,258," Yapılmakta Olan Yatırımlar",0]
[null,259," Verilen Avanslar",0,null,5,"ÖZKAYNAKLAR",{"$f":"SUM(H105+H110+H117+H123-H125+H127)","v":2500000}]
[null,26,"Maddi Olmayan Duran Varlıklar",{"$f":"SUM(D106,D107,D108,D109,D110,D111,-D112,D113)","v":0},null,50,"Ödenmiş Sermaye",{"$f":"SUM(H106,-H107,H108,-H109)","v":2500000}]
[null,260," Haklar",{"$f":"IF(ISERROR(VLOOKUP(B106,HESAP_KODU,5,FALSE)),0,IF(VLOOKUP(B106,HESAP_KODU,5,FALSE)=0,VLOOKUP(B106,HESAP_KODU,6,FALSE),VLOOKUP(B106,HESAP_KODU,5,FALSE)))","v":0},null,500," Sermaye",{"$f":"IF(ISERROR(VLOOKUP(F106,HESAP_KODU,5,FALSE)),0,IF(VLOOKUP(F106,HESAP_KODU,5,FALSE)=0,VLOOKUP(F106,HESAP_KODU,6,FALSE),VLOOKUP(F106,HESAP_KODU,5,FALSE)))","v":2500000}]
[null,261," Şerefiye",0,null,501," Ödenmemiş Sermaye (-)",{"$f":"IF(ISERROR(VLOOKUP(F107,HESAP_KODU,5,FALSE)),0,IF(VLOOKUP(F107,HESAP_KODU,5,FALSE)=0,VLOOKUP(F107,HESAP_KODU,6,FALSE),VLOOKUP(F107,HESAP_KODU,5,FALSE)))","v":0}]
[null,262," Kuruluş ve Örgütleme Giderleri",0,null,502," Sermaye Düzeltmesi Olumlu Farkları",{"$f":"IF(ISERROR(VLOOKUP(F108,HESAP_KODU,5,FALSE)),0,IF(VLOOKUP(F108,HESAP_KODU,5,FALSE)=0,VLOOKUP(F108,HESAP_KODU,6,FALSE),VLOOKUP(F108,HESAP_KODU,5,FALSE)))","v":0}]
[null,263," Araştırma ve Geliştirme Giderleri",0,null,503," Sermaye Düzeltmesi Olumsuz Farkları (-)",{"$f":"IF(ISERROR(VLOOKUP(F109,HESAP_KODU,5,FALSE)),0,IF(VLOOKUP(F109,HESAP_KODU,5,FALSE)=0,VLOOKUP(F109,HESAP_KODU,6,FALSE),VLOOKUP(F109,HESAP_KODU,5,FALSE)))","v":0}]
[null,264," Özel Maliyetler",0,null,52,"Sermaye Yedekleri",{"$f":"SUM(H111:H116)","v":0}]
[null,267," Diğer Maddi Olmayan Duran Varlıklar",0,null,520," Hisse Senedi İhraç Primleri",{"$f":"IF(ISERROR(VLOOKUP(F111,HESAP_KODU,5,FALSE)),0,IF(VLOOKUP(F111,HESAP_KODU,5,FALSE)=0,VLOOKUP(F111,HESAP_KODU,6,FALSE),VLOOKUP(F111,HESAP_KODU,5,FALSE)))","v":0}]
[null,268," Birikmiş Amortismanlar (-)",0,null,521," Hisse Senedi İptal Kararları",0]
[null,269," Verilen Avanslar",0,null,522," M.D.V. Yeniden Değerleme Artışları",0]
[null,27,"Özel Tükenmeye Tabi Varlıklar",{"$f":"SUM(D115,D116,D117,-D118,D119)","v":0},null,523," İştirakler Yeniden Değerleme Artışları",0]
[null,271," Arama Giderleri",{"$f":"IF(ISERROR(VLOOKUP(B115,HESAP_KODU,5,FALSE)),0,IF(VLOOKUP(B115,HESAP_KODU,5,FALSE)=0,VLOOKUP(B115,HESAP_KODU,6,FALSE),VLOOKUP(B115,HESAP_KODU,5,FALSE)))","v":0},null,524," Maliyet Bedeli Artışları Fonu",0]
[null,272," Hazırlık ve Geliştirme Giderleri",{"$f":"IF(ISERROR(VLOOKUP(B116,HESAP_KODU,5,FALSE)),0,IF(VLOOKUP(B116,HESAP_KODU,5,FALSE)=0,VLOOKUP(B116,HESAP_KODU,6,FALSE),VLOOKUP(B116,HESAP_KODU,5,FALSE)))","v":0},null,529," Diğer Sermaye Yedekleri",0]
[null,277," Diğer Özel Tükenmeye Tabi Varlıklar",{"$f":"IF(ISERROR(VLOOKUP(B117,HESAP_KODU,5,FALSE)),0,IF(VLOOKUP(B117,HESAP_KODU,5,FALSE)=0,VLOOKUP(B117,HESAP_KODU,6,FALSE),VLOOKUP(B117,HESAP_KODU,5,FALSE)))","v":0},null,54,"Kar Yedekleri",{"$f":"SUM(H118:H122)","v":0}]
[null,278," Birikmiş Tükenme Payları (-)",{"$f":"IF(ISERROR(VLOOKUP(B118,HESAP_KODU,5,FALSE)),0,IF(VLOOKUP(B118,HESAP_KODU,5,FALSE)=0,VLOOKUP(B118,HESAP_KODU,6,FALSE),VLOOKUP(B118,HESAP_KODU,5,FALSE)))","v":0},null,540," Yasal Yedekler",{"$f":"IF(ISERROR(VLOOKUP(F118,HESAP_KODU,5,FALSE)),0,IF(VLOOKUP(F118,HESAP_KODU,5,FALSE)=0,VLOOKUP(F118,HESAP_KODU,6,FALSE),VLOOKUP(F118,HESAP_KODU,5,FALSE)))","v":0}]
[null,279," Verilen Avanslar",{"$f":"IF(ISERROR(VLOOKUP(B119,HESAP_KODU,5,FALSE)),0,IF(VLOOKUP(B119,HESAP_KODU,5,FALSE)=0,VLOOKUP(B119,HESAP_KODU,6,FALSE),VLOOKUP(B119,HESAP_KODU,5,FALSE)))","v":0},null,541," Statü Yedekleri",{"$f":"IF(ISERROR(VLOOKUP(F119,HESAP_KODU,5,FALSE)),0,IF(VLOOKUP(F119,HESAP_KODU,5,FALSE)=0,VLOOKUP(F119,HESAP_KODU,6,FALSE),VLOOKUP(F119,HESAP_KODU,5,FALSE)))","v":0}]
[null,28,"Gelecek Yıllara Ait Giderler ve ",{"$f":"SUM(D122:D123)","v":0},null,542," Olağanüstü Yedekler",{"$f":"IF(ISERROR(VLOOKUP(F120,HESAP_KODU,5,FALSE)),0,IF(VLOOKUP(F120,HESAP_KODU,5,FALSE)=0,VLOOKUP(F120,HESAP_KODU,6,FALSE),VLOOKUP(F120,HESAP_KODU,5,FALSE)))","v":0}]
[null,null,"Gelir Tahakkukları",null,null,548," Diğer Kar Yedekleri",{"$f":"IF(ISERROR(VLOOKUP(F121,HESAP_KODU,5,FALSE)),0,IF(VLOOKUP(F121,HESAP_KODU,5,FALSE)=0,VLOOKUP(F121,HESAP_KODU,6,FALSE),VLOOKUP(F121,HESAP_KODU,5,FALSE)))","v":0}]
[null,280," Gelecek Yıllara Ait Giderler",{"$f":"IF(ISERROR(VLOOKUP(B122,HESAP_KODU,5,FALSE)),0,IF(VLOOKUP(B122,HESAP_KODU,5,FALSE)=0,VLOOKUP(B122,HESAP_KODU,6,FALSE),VLOOKUP(B122,HESAP_KODU,5,FALSE)))","v":0},null,549," Özel Fonlar",{"$f":"IF(ISERROR(VLOOKUP(F122,HESAP_KODU,5,FALSE)),0,IF(VLOOKUP(F122,HESAP_KODU,5,FALSE)=0,VLOOKUP(F122,HESAP_KODU,6,FALSE),VLOOKUP(F122,HESAP_KODU,5,FALSE)))","v":0}]
[null,281," Gelir Tahakkukları",{"$f":"IF(ISERROR(VLOOKUP(B123,HESAP_KODU,5,FALSE)),0,IF(VLOOKUP(B123,HESAP_KODU,5,FALSE)=0,VLOOKUP(B123,HESAP_KODU,6,FALSE),VLOOKUP(B123,HESAP_KODU,5,FALSE)))","v":0},null,57,"Geçmiş Yıllar Karları",{"$f":"+H124","v":0}]
[null,29,"Diğer Duran Varlıklar",{"$f":"SUM(D125,D126,D127,D128,D130,D131,-D132,-D133)","v":0},null,570," Geçmiş Yıllar Karları",{"$f":"IF(ISERROR(VLOOKUP(F124,HESAP_KODU,5,FALSE)),0,IF(VLOOKUP(F124,HESAP_KODU,5,FALSE)=0,VLOOKUP(F124,HESAP_KODU,6,FALSE),VLOOKUP(F124,HESAP_KODU,5,FALSE)))","v":0}]
[null,291," Gelecek Yıllarda İndirilecek KDV",{"$f":"IF(ISERROR(VLOOKUP(B125,HESAP_KODU,5,FALSE)),0,IF(VLOOKUP(B125,HESAP_KODU,5,FALSE)=0,VLOOKUP(B125,HESAP_KODU,6,FALSE),VLOOKUP(B125,HESAP_KODU,5,FALSE)))","v":0},null,58,"Geçmiş Yıllar Zararları (-)",{"$f":"+H126","v":0}]
[null,292," Diğer KDV",0,null,580," Geçmiş Yıllar Zararları (-)",{"$f":"IF(ISERROR(VLOOKUP(F126,HESAP_KODU,5,FALSE)),0,IF(VLOOKUP(F126,HESAP_KODU,5,FALSE)=0,VLOOKUP(F126,HESAP_KODU,6,FALSE),VLOOKUP(F126,HESAP_KODU,5,FALSE)))","v":0}]
[null,293," Gelecek Yılalr İhtiyacı Stoklar",0,null,59,"Dönem Net Karı (Zararı)",{"$f":"SUM(H128,-H129)","v":0}]
[null,294," Elden Çıkarılacak Stoklar Ve Mad.D.V.",0,null,590," Dönem Net Karı ",{"$f":"IF(ISERROR(VLOOKUP(F128,HESAP_KODU,5,FALSE)),0,IF(VLOOKUP(F128,HESAP_KODU,5,FALSE)=0,VLOOKUP(F128,HESAP_KODU,6,FALSE),VLOOKUP(F128,HESAP_KODU,5,FALSE)))","v":0}]
[null,296,"Geçici Hesap",0,null,591," Dönem Net Zararı (-)",{"$f":"IF(ISERROR(VLOOKUP(F129,HESAP_KODU,5,FALSE)),0,IF(VLOOKUP(F129,HESAP_KODU,5,FALSE)=0,VLOOKUP(F129,HESAP_KODU,6,FALSE),VLOOKUP(F129,HESAP_KODU,5,FALSE)))","v":0}]
[null,295," Peşin Ödenen Vergi Ve Fonlar",0]
[null,297," Diğer Çeşitli Duran Varlıklar",0]
[null,298," Stok Değer Düşüklüğü Karşılığı (-)",0]
[null,299," Birikmiş Amortismanlar (-)",0]
[null,null,"AKTİF (VARLIKLAR) TOPLAMI",{"$f":"+D6+D64","v":8700},null,null,"PASİF KAYNAKLAR TOPLAMI",{"$f":"+H6+H64+H104","v":2500000}]
[]
[]
[null,null,null,null,null,null," ",{"$f":"+H134-D134","v":2491300}]

{"sheet":"GELİR TABLOSU","index":3,"n_rows":57,"n_cols":3,"rows_kept":57,"cut":false,"hidden":false,"merged":[[1,1,3,2]]}
[]
[null,"31/12/202.. TARİHLİ                                                                                       AYRINTILI GELİR TABLOSU  "]
[]
[]
["KOD","HESAP ADI","  Cari Dönem"]
[null,"   A-BRÜT SATIŞLAR",{"$f":"SUM(C7:C9)","v":5500}]
[600,"        1-Yurt İçi Satışlar",{"$f":"IF(ISERROR(VLOOKUP(A7,HESAP_KODU,5,FALSE)),0,IF(VLOOKUP(A7,HESAP_KODU,5,FALSE)=0,VLOOKUP(A7,HESAP_KODU,6,FALSE),VLOOKUP(A7,HESAP_KODU,5,FALSE)))","v":5500}]
[601,"        2-Yurt Dışı Satışlar",{"$f":"IF(ISERROR(VLOOKUP(A8,HESAP_KODU,5,FALSE)),0,IF(VLOOKUP(A8,HESAP_KODU,5,FALSE)=0,VLOOKUP(A8,HESAP_KODU,6,FALSE),VLOOKUP(A8,HESAP_KODU,5,FALSE)))","v":0}]
[602,"        3-Diğer Gelirler",{"$f":"IF(ISERROR(VLOOKUP(A9,HESAP_KODU,5,FALSE)),0,IF(VLOOKUP(A9,HESAP_KODU,5,FALSE)=0,VLOOKUP(A9,HESAP_KODU,6,FALSE),VLOOKUP(A9,HESAP_KODU,5,FALSE)))","v":0}]
[null,"   B-SATIŞ İNDİRİMLERİ  ( - )",{"$f":"SUM(C11:C13)","v":400}]
[610,"        1-Satıştan İadeler  ( - )",{"$f":"IF(ISERROR(VLOOKUP(A11,HESAP_KODU,5,FALSE)),0,IF(VLOOKUP(A11,HESAP_KODU,5,FALSE)=0,VLOOKUP(A11,HESAP_KODU,6,FALSE),VLOOKUP(A11,HESAP_KODU,5,FALSE)))","v":400}]
[611,"        2-Satıştan İskontalar  ( - )",{"$f":"IF(ISERROR(VLOOKUP(A12,HESAP_KODU,5,FALSE)),0,IF(VLOOKUP(A12,HESAP_KODU,5,FALSE)=0,VLOOKUP(A12,HESAP_KODU,6,FALSE),VLOOKUP(A12,HESAP_KODU,5,FALSE)))","v":0}]
[612,"        3-Diğer İndirimler  ( - )",{"$f":"IF(ISERROR(VLOOKUP(A13,HESAP_KODU,5,FALSE)),0,IF(VLOOKUP(A13,HESAP_KODU,5,FALSE)=0,VLOOKUP(A13,HESAP_KODU,6,FALSE),VLOOKUP(A13,HESAP_KODU,5,FALSE)))","v":0}]
[null,"   C-NET SATIŞLAR",{"$f":"C6-C10","v":5100}]
[null,"   D-SATIŞLARIN MALİYETİ  ( - )",{"$f":"SUM(C16:C19)","v":0}]
[620,"        1-Satılan Mamüller Maliyeti  ( - )",{"$f":"IF(ISERROR(VLOOKUP(A16,HESAP_KODU,5,FALSE)),0,IF(VLOOKUP(A16,HESAP_KODU,5,FALSE)=0,VLOOKUP(A16,HESAP_KODU,6,FALSE),VLOOKUP(A16,HESAP_KODU,5,FALSE)))","v":0}]
[621,"        2-Satılan Ticari Mallar Maliyeti  ( - )",{"$f":"IF(ISERROR(VLOOKUP(A17,HESAP_KODU,5,FALSE)),0,IF(VLOOKUP(A17,HESAP_KODU,5,FALSE)=0,VLOOKUP(A17,HESAP_KODU,6,FALSE),VLOOKUP(A17,HESAP_KODU,5,FALSE)))","v":0}]
[622,"        3-Satılan Hizmet Maliyeti  ( - )",{"$f":"IF(ISERROR(VLOOKUP(A18,HESAP_KODU,5,FALSE)),0,IF(VLOOKUP(A18,HESAP_KODU,5,FALSE)=0,VLOOKUP(A18,HESAP_KODU,6,FALSE),VLOOKUP(A18,HESAP_KODU,5,FALSE)))","v":0}]
[623,"        4-Diğer Satışların Maliyeti  ( - )",{"$f":"IF(ISERROR(VLOOKUP(A19,HESAP_KODU,5,FALSE)),0,IF(VLOOKUP(A19,HESAP_KODU,5,FALSE)=0,VLOOKUP(A19,HESAP_KODU,6,FALSE),VLOOKUP(A19,HESAP_KODU,5,FALSE)))","v":0}]
[null,"      BRÜT SATIŞ KARI VEYA ZARARI",{"$f":"(C6-C10)-C15","v":5100}]
[null,"   E-FAALİYET GİDERLERİ",{"$f":"SUM(C22:C24)","v":1800}]
[750,"         1-Araştırma ve Geliştirme Giderleri  ( - )",{"$f":"IF(ISERROR(VLOOKUP(A22,HESAP_KODU,5,FALSE)),0,IF(VLOOKUP(A22,HESAP_KODU,5,FALSE)=0,VLOOKUP(A22,HESAP_KODU,6,FALSE),VLOOKUP(A22,HESAP_KODU,5,FALSE)))","v":500}]
[760,"         2-Pazarlama, Satış ve Dağıtım Giderleri (-)",{"$f":"IF(ISERROR(VLOOKUP(A23,HESAP_KODU,5,FALSE)),0,IF(VLOOKUP(A23,HESAP_KODU,5,FALSE)=0,VLOOKUP(A23,HESAP_KODU,6,FALSE),VLOOKUP(A23,HESAP_KODU,5,FALSE)))","v":600}]
[770,"         3-Genel Yönetim Giderleri  ( - )",{"$f":"IF(ISERROR(VLOOKUP(A24,HESAP_KODU,5,FALSE)),0,IF(VLOOKUP(A24,HESAP_KODU,5,FALSE)=0,VLOOKUP(A24,HESAP_KODU,6,FALSE),VLOOKUP(A24,HESAP_KODU,5,FALSE)))","v":700}]
[null,"       FAALİYET KARI VEYA ZARARI",{"$f":"SUM(C20,-C21)","v":3300}]
[null,"   F-DİĞER FAALİYETLERDEN OLAĞAN GELİR VE KARLAR",{"$f":"SUM(C27:C36)","v":0}]
[640,"          1-İştiraklerden Temettü Gelirleri",{"$f":"IF(ISERROR(VLOOKUP(A27,HESAP_KODU,5,FALSE)),0,IF(VLOOKUP(A27,HESAP_KODU,5,FALSE)=0,VLOOKUP(A27,HESAP_KODU,6,FALSE),VLOOKUP(A27,HESAP_KODU,5,FALSE)))","v":0}]
[641,"          2-Bağlı Ortaklıklardan Temettü Gelirleri",0]
[642,"          3-Faiz Gelirleri",0]
[643,"          4-Komisyon Gelirleri",0]
[644,"          5-Konusu Kalmayan Karşılıklar",0]
[645,"          6-Menkul Kıymet Satış Karları",0]
[646,"          7-Kambiyo Karları",0]
[647,"          8-Reeskont Faiz Gelirleri",0]
[648,"          9-Enflasyon Düzeltmesi Karları",0]
[649,"        10-Faaliyetlerle İlgili Diğer Olağan Gelir ve Karlar",0]
[null,"   G-DİĞER FAAL. OLAĞAN GİDER VE ZARARLAR(-)",{"$f":"SUM(C38:C43)","v":0}]
[653,"           1-Komisyon Giderleri  ( - )",{"$f":"IF(ISERROR(VLOOKUP(A38,HESAP_KODU,5,FALSE)),0,IF(VLOOKUP(A38,HESAP_KODU,5,FALSE)=0,VLOOKUP(A38,HESAP_KODU,6,FALSE),VLOOKUP(A38,HESAP_KODU,5,FALSE)))","v":0}]
[654,"           2-Karşılık Giderleri  ( - )",0]
[655,"           3-Menkul Kıymet Satış Zararları  ( - )",0]
[656,"           4-Kambiyo Zararları  ( - )",0]
[657,"           5-Reeskont Faiz Giderleri  ( - )",0]
[659,"           6-Diğer olağan Gider ve Zararlar  ( - )",0]
[null,"   H-FİNANSMAN GİDERLERİ  ( - )",{"$f":"SUM(C45:C46)","v":800}]
[780,"           1-Kısa Vadeli Borçlanma Giderleri  ( - )",{"$f":"IF(ISERROR(VLOOKUP(A45,HESAP_KODU,5,FALSE)),0,IF(VLOOKUP(A45,HESAP_KODU,5,FALSE)=0,VLOOKUP(A45,HESAP_KODU,6,FALSE),VLOOKUP(A45,HESAP_KODU,5,FALSE)))","v":800}]
[661,"           2-Uzun Vadeli Borçlanma Giderleri  ( - )",{"$f":"IF(ISERROR(VLOOKUP(A46,HESAP_KODU,5,FALSE)),0,IF(VLOOKUP(A46,HESAP_KODU,5,FALSE)=0,VLOOKUP(A46,HESAP_KODU,6,FALSE),VLOOKUP(A46,HESAP_KODU,5,FALSE)))","v":0}]
[null,"        OLAĞAN KAR VEYA ZARAR",{"$f":"(((((C6-C10)-C15)-C21)+C26)-C37)-C44","v":2500}]
[null,"   I-OLAĞAN DIŞI GELİR VE KARLAR",{"$f":"C49+C50","v":0}]
[671,"           1-Önceki Dönem Gelir ve Karları ",{"$f":"IF(ISERROR(VLOOKUP(A49,HESAP_KODU,5,FALSE)),0,IF(VLOOKUP(A49,HESAP_KODU,5,FALSE)=0,VLOOKUP(A49,HESAP_KODU,6,FALSE),VLOOKUP(A49,HESAP_KODU,5,FALSE)))","v":0}]
[679,"           2-Diğer Olağandışı Gelir ve Karlar",{"$f":"IF(ISERROR(VLOOKUP(A50,HESAP_KODU,5,FALSE)),0,IF(VLOOKUP(A50,HESAP_KODU,5,FALSE)=0,VLOOKUP(A50,HESAP_KODU,6,FALSE),VLOOKUP(A50,HESAP_KODU,5,FALSE)))","v":0}]
[null,"   J-OLAĞANDIŞI GİDER VE ZARARLAR  ( - )",{"$f":"SUM(C52:C54)","v":0}]
[680,"           1-Çalışmayan Kısım Gider ve Zararları  ( - )",{"$f":"IF(ISERROR(VLOOKUP(A52,HESAP_KODU,5,FALSE)),0,IF(VLOOKUP(A52,HESAP_KODU,5,FALSE)=0,VLOOKUP(A52,HESAP_KODU,6,FALSE),VLOOKUP(A52,HESAP_KODU,5,FALSE)))","v":0}]
[681,"           2-Önceki Dönem Gider ve Zararları  ( - )",{"$f":"IF(ISERROR(VLOOKUP(A53,HESAP_KODU,5,FALSE)),0,IF(VLOOKUP(A53,HESAP_KODU,5,FALSE)=0,VLOOKUP(A53,HESAP_KODU,6,FALSE),VLOOKUP(A53,HESAP_KODU,5,FALSE)))","v":0}]
[689,"           3-Diğer Olağandışı Gider ve Zararlar  ( - )",{"$f":"IF(ISERROR(VLOOKUP(A54,HESAP_KODU,5,FALSE)),0,IF(VLOOKUP(A54,HESAP_KODU,5,FALSE)=0,VLOOKUP(A54,HESAP_KODU,6,FALSE),VLOOKUP(A54,HESAP_KODU,5,FALSE)))","v":0}]
[null,"         DÖNEM KARI VEYA ZARARI",{"$f":"(((((((C6-C10)-C15)-C21)+C26)-C37)-C44)+C48)-C51","v":2500}]
[691,"   K-DÖNEM KARI VERGİ VE DİĞER YASAL YÜK. KARŞ.(-)",{"$f":"IF(ISERROR(VLOOKUP(A56,HESAP_KODU,5,FALSE)),0,IF(VLOOKUP(A56,HESAP_KODU,5,FALSE)=0,VLOOKUP(A56,HESAP_KODU,6,FALSE),VLOOKUP(A56,HESAP_KODU,5,FALSE)))","v":0}]
[692,"         DÖNEM NET KARI VEYA ZARARI",{"$f":"((((((((C6-C10)-C15)-C21)+C26)-C37)-C44)+C48)-C51)-C56","v":2500}]

{"sheet":"RASYO ANALİZLER","index":4,"n_rows":24,"n_cols":5,"rows_kept":24,"cut":false,"hidden":false,"merged":[]}
["RASYO ADI","ORAN ŞEKLİ","ÇIKAN SONUÇ","OLMASI GEREKEN ORAN","ANALİZ YORUM"]
["CARİ ORAN","Dönen Varlıklar / KVYK",{"$f":"+BİLANÇO!D6/BİLANÇO!H6","v":{"$error":"#DIV/0!"}},"2<","işletmenin kısa vadeli borç ödeme gücünü gösterir.1 den düşük olması parasal sıkıntı, 2 den fazla olması ise işletmenin gereğinden fazla fon  tuttuğu anlamına gelir."]
["LİKİDİTE ORANLARI (Asit Test Oranı)","Dönen Varlıklar-Stoklar  / KVYK",{"$f":"+(BİLANÇO!D6-BİLANÇO!D39)/BİLANÇO!H6","v":{"$error":"#DIV/0!"}},"1<","işletmenin stoklarına başvurmadan kısa vadeli yükümlülüklerini yerine getirebilme yeterliliği hakkında bilgi verir."]
["NAKİT ORAN ","Hazır değerler +Menkul Kıymetler / KVYK",{"$f":"+(BİLANÇO!D7+BİLANÇO!D13)/BİLANÇO!H6","v":{"$error":"#DIV/0!"}},"0,2<","işletmenin stoklarına ve alacaklarına  başvurmadan K.V. yükümlülüklerini yerine getirebilme yeterliliği hakkında bilgi verir."]
["STOK BAĞIMLILIK ORANI","K.V.Y.K.-(Haz.Değ+Menk.Kıym) / STOKLAR",{"$f":"(BİLANÇO!H6-(BİLANÇO!D7+BİLANÇO!D13))/BİLANÇO!D39","v":{"$error":"#DIV/0!"}},"?","Asit test oranının 1 den küçük çıkması halinde K.V.Borçların ödenebilmesi için stokların % kaçının satılması gerektiğini belirtir."]
["NET ÇALIŞMA SERMAYESİ","Dönen Varlıklar-K.V.Y.K.",{"$f":"+BİLANÇO!D6-BİLANÇO!H6","v":8700},null,"K.V. yükümlülüklerini yerine getirebilme gücünü gösterir."]
["NET İŞLETME SERMAYESİ DEVİR HIZI","Net Satışlar / NET İŞLETME SERMAYESİ",{"$f":"+'GELİR TABLOSU'!C14/'RASYO ANALİZLER'!C6","v":0.58620689655172409},"?","Yüksek olması tercih edilir Oranın Pay kısmının ve paydanında yüksek olması tercih edilir. Ancak cari oranla birlikte yorumlanmalıdır. Net İşletme sermayesinin düşük olması riskli olabilir."]
["STOK DEVİR HIZI","Satışların Maliyeti / ORTALAMA STOKLAR",{"$f":"+'GELİR TABLOSU'!C15/BİLANÇO!D39","v":{"$error":"#DIV/0!"}},"6<","Stok devir hızının yavaşlaması işletmenin stok maliyetlerinin artabileceğine işaret etmektedir."]
["ALACAK DEVİR HIZI","Net Satışlar / ortalama ticari alacaklar",{"$f":"+'GELİR TABLOSU'!C14/BİLANÇO!D20","v":{"$error":"#DIV/0!"}},"7<","Alacak devir hızının gerilemesi işletmenin alacaklarını nakde dönüştürmede sıkıntılar yaşadığını,alacak tahsilat politikasının bozulduğunu ve şüpheli alacak riskinin arttığını gösterir."]
["AKTİF DEVİR HIZI","Net Satışlar / ortalama aktif toplam",{"$f":"+'GELİR TABLOSU'!C14/BİLANÇO!D134","v":0.58620689655172409},"1<","işletmenin sahip olduğu toplam varlıkları kullanmadaki etkinliğini ölçmek için bu oran kullanılır."]
["ÖZKAYNAK DEVİR HIZI","Net Satışlar / ortalama özkaynaklar",{"$f":"+'GELİR TABLOSU'!C14/BİLANÇO!H104","v":2.0400000000000001E-3},"4-5<","İşletmenin özsermayesini ne ölçüde verimli kullandığını gösterir."]
["FİNANSAL KALDIRAÇ","Yabancı Kaynaklar / aktif toplam",{"$f":"+(BİLANÇO!H6+BİLANÇO!H64)/BİLANÇO!D134","v":0},"0,5>","Varlıkların ne ölçüde yabancı kaynaklarla karşılandığını gösterir."]
["ÖZKAYNAK ORANI","Özkaynaklar / aktif toplam",{"$f":"+BİLANÇO!H104/BİLANÇO!D134","v":287.35632183908046},"0,5<","Varlıkların ne ölçüde işletme sahip ve sahiplerinin tahsis ettikleri kaynaklarla finanse edildiğini  gösterir."]
["FİNASMAN ORAN","Özkaynaklar / KVYK + UVYK",{"$f":"+BİLANÇO!H104/(BİLANÇO!H6+BİLANÇO!H64)","v":{"$error":"#DIV/0!"}},"1<","Oranın arzu edilen seviyenin altında olunması durumunda işletmenin sahiplerinden daha çok üçüncü kişilerce finanse edildiğini gösterir. Bu da işletme için bir risk unsurudur."]
["KVYK / toplam yabancı kaynaklar","Kısa Vadeli Yabancı Kaynaklar / toplam yabancı kaynaklar",{"$f":"+BİLANÇO!H6/(BİLANÇO!H6+BİLANÇO!H64)","v":{"$error":"#DIV/0!"}},"0,7>","Kısa vadeli kaynakların toplam yabancı kaynaklar içindeki payını gösterir."]
["UVYK / toplam yabancı kaynaklar","Uzun Vadeli Yabancı Kaynaklar / toplam yabancı kaynaklar",{"$f":"+BİLANÇO!H64/(BİLANÇO!H6+BİLANÇO!H64)","v":{"$error":"#DIV/0!"}},"0,52<","Uzun  vadeli kaynakların toplam yabancı kaynaklar içindeki payını gösterir."]
["K.V.Y.K. 'IN ÖZKAYNAKLARA ORANI","Kısa  Vadeli Yabancı Kaynaklar / özkaynaklar",{"$f":"+BİLANÇO!H6/BİLANÇO!H104","v":0},"1<","Kısa vadede özkaynakların kaç katı borçlandığı hesaplanır."]
["DURAN VARLIKLARIN ÖZKAYNAKLARA ORANI","Duran Varlıklar / özkaynaklar",{"$f":"+BİLANÇO!D64/BİLANÇO!H104","v":0},"1>","Özkaynakların ne kadarının duran varlıklarda kullanıldığını gösterir. 1 den büyük olması duran varlıkların bir kısmının borçla temin edildiğini gösterir."]
["BRÜT SATIŞ  KARLILIĞI ORANI","Brüt Satış Karı / net satışlar",{"$f":"+'GELİR TABLOSU'!C6/'GELİR TABLOSU'!C14","v":1.0784313725490196},"0,15<","yorum"]
["VERGİ SONRASI NET KAR MARJI","Net Kar / net satışlar",{"$f":"+'GELİR TABLOSU'!C57/'GELİR TABLOSU'!C6","v":0.45454545454545453},"?","Vergi sonrası satış karının net satış içerisindeki payını gösterir."]
["FAALİYET   KARLILIĞI ORANI","Faaliyet karı / net satışlar",{"$f":"+'GELİR TABLOSU'!C25/'GELİR TABLOSU'!C14","v":0.6470588235294118},"0,12<","yorum"]
["FAALİYET   GİDERLERİ  ORANI","Faaliyet Giderleri  / net satışlar",{"$f":"+'GELİR TABLOSU'!C21/'GELİR TABLOSU'!C14","v":0.35294117647058826},"?","Faaliyet giderlerinin net satışların yüzde kaçı olduğunu ve dönem karı üzerindeki ağırlığını ölçer"]
["DEVAMLI SERMAYE","UZUN VADELİ YABANCI KAYNAKLAR + ÖZ KAYNAKLAR",{"$f":"+BİLANÇO!H64+BİLANÇO!H104","v":2500000},"?","?"]
["DU PONT ANALİZİ","Net Kar Marjı*Varlık devir hızı*Özsermaye çarpanı",{"$f":"+('GELİR TABLOSU'!C55/'GELİR TABLOSU'!C14)*('GELİR TABLOSU'!C14/BİLANÇO!D134)*(BİLANÇO!D134/BİLANÇO!H104)","v":1E-3}]